{"text_format":"1","workbook":"xlsx","n_sheets":3,"sheets":["Comentarios","Contenido RETIE gral","Contenido RETIE esp"],"not_rendered":{"charts":0,"images":0,"macros":1,"external_links":0,"defined_names":1,"comments":0,"pivot_tables":0},"unopened":[],"bounds":{"document_bytes":16777216,"sheet_cells":100000,"rows_first":2000,"rows_last":500,"rows_between":2000,"halvings":0,"cell_chars":16384,"cell_head_chars":4096},"cells_cut":0,"cells_raw":0,"read":"whole","date_system":"1900"}

{"sheet":"Comentarios","index":0,"n_rows":101,"n_cols":6,"rows_kept":101,"cut":false,"hidden":false,"merged":[[16,0,16,5],[12,1,12,5],[14,1,14,5],[15,1,15,5],[7,1,7,5],[13,0,13,5],[8,0,8,5],[9,1,9,5],[10,1,10,5],[11,1,11,5],[1,0,2,5],[3,1,3,5],[4,1,4,5],[5,1,5,5],[6,1,6,5]]}
[]
["FORMULARIO PARA RECEPCIÓN DE COMENTARIOS DE LA CIUDADANÍA Y PARTES INTERESADAS"]
[]
["Sector: ","Energía"]
["Proyecto: Resolución","\"Por la cual se expide el nuevo Reglamento Técnico de Instalaciones Eléctricas - RETIE\""]
["Fecha inicio:","01 de marzo de 2022"]
["Fecha  fin: ","01 de mayo de 2022"]
["Fecha Comentario: "]
["Datos de contacto"]
["Nombre:"]
["Empresa:"]
["Correo electrónico:"]
["Telefono:"]
[]
["NOTA 1","En los casos que su comentario sea ajustar, modificar o eliminar algún ítem de la propuesta presentada, sugerimos incluir su debida justificación técnica"]
["NOTA 2","Favor incluir solo texto, en caso de considerar necesario el envío de información adicional como gráficos o tablas, agradecemos enviarlo al correo electrónico pciudadana@minenergia.gov.co indicando en el asunto: \"Comentarios al Proyecto de Resolución por la cual se expide el nuevo Reglamento Técnico de Instalaciones Eléctricas - RETIE\""]
[]
["TIPO DE COMENTARIO\n\n\n(De la lista desplegable seleccione si su comentario es Editorial o Técnico)","1er REFERENTE DEL ACTO ADMINISTRATIVO\n\n(De la lista desplegable seleccione alguno de los Anexos, la Resolución, o la Memoria Justificativa)","TEMA DE OBSERVACIÓN DEL 1er REFERENTE DEL ACTO ADMINISTRATIVO","2do REFERENTE DEL ACTO ADMINISTRATIVO\n\n(De la lista desplegable seleccione el Título, Artículo, Númeral, o Capítulo del que hará el comentario) ","TEMA DE OBSERVACIÓN DEL 2do REFERENTE DEL ACTO ADMINISTRATIVO","Comentario detallado y Propuesta de Modificación\n(Ver Notas 1 y 2)"]
[null,null,{"$f":"IFERROR(VLOOKUP(B19,'Contenido RETIE esp'!$A$2:$B$398,2,FALSE),\"\")","v":""},null,{"$f":"+_xlfn.IFNA(+IF(B19=\"ANEXO1\",VLOOKUP(D19,'Contenido RETIE esp'!$A$3:$B$24,2,FALSE),IF(B19=\"ANEXO2\",VLOOKUP(D19,'Contenido RETIE esp'!$A$26:$B$98,2,FALSE),IF(B19=\"ANEXO3\",VLOOKUP(D19,'Contenido RETIE esp'!$A$100:$B$303,2,FALSE),IF(B19=\"ANEXO4\",VLOOKUP(D19,'Contenido RETIE esp'!$A$305:$B$353,2,FALSE),IF(B19=\"RESOLUCIÓN\",VLOOKUP(D19,'Contenido RETIE esp'!$A$355:$B$363,2,FALSE),IF(B19=\"MEMORIAJUSTIFICATIVA\",VLOOKUP(D19,'Contenido RETIE esp'!$A$363:$B$398,2,FALSE),\"\")))))),\"\")","v":""}]
[null,null,{"$f":"IFERROR(VLOOKUP(B20,'Contenido RETIE esp'!$A$2:$B$398,2,FALSE),\"\")","v":""},null,{"$f":"+_xlfn.IFNA(+IF(B20=\"ANEXO1\",VLOOKUP(D20,'Contenido RETIE esp'!$A$3:$B$24,2,FALSE),IF(B20=\"ANEXO2\",VLOOKUP(D20,'Contenido RETIE esp'!$A$26:$B$98,2,FALSE),IF(B20=\"ANEXO3\",VLOOKUP(D20,'Contenido RETIE esp'!$A$100:$B$303,2,FALSE),IF(B20=\"ANEXO4\",VLOOKUP(D20,'Contenido RETIE esp'!$A$305:$B$353,2,FALSE),IF(B20=\"RESOLUCIÓN\",VLOOKUP(D20,'Contenido RETIE esp'!$A$355:$B$363,2,FALSE),IF(B20=\"MEMORIAJUSTIFICATIVA\",VLOOKUP(D20,'Contenido RETIE esp'!$A$363:$B$398,2,FALSE),\"\")))))),\"\")","v":""}]
[null,null,{"$f":"IFERROR(VLOOKUP(B21,'Contenido RETIE esp'!$A$2:$B$398,2,FALSE),\"\")","v":""},null,{"$f":"+_xlfn.IFNA(+IF(B21=\"ANEXO1\",VLOOKUP(D21,'Contenido RETIE esp'!$A$3:$B$24,2,FALSE),IF(B21=\"ANEXO2\",VLOOKUP(D21,'Contenido RETIE esp'!$A$26:$B$98,2,FALSE),IF(B21=\"ANEXO3\",VLOOKUP(D21,'Contenido RETIE esp'!$A$100:$B$303,2,FALSE),IF(B21=\"ANEXO4\",VLOOKUP(D21,'Contenido RETIE esp'!$A$305:$B$353,2,FALSE),IF(B21=\"RESOLUCIÓN\",VLOOKUP(D21,'Contenido RETIE esp'!$A$355:$B$363,2,FALSE),IF(B21=\"MEMORIAJUSTIFICATIVA\",VLOOKUP(D21,'Contenido RETIE esp'!$A$363:$B$398,2,FALSE),\"\")))))),\"\")","v":""}]
[null,null,{"$f":"IFERROR(VLOOKUP(B22,'Contenido RETIE esp'!$A$2:$B$398,2,FALSE),\"\")","v":""},null,{"$f":"+_xlfn.IFNA(+IF(B22=\"ANEXO1\",VLOOKUP(D22,'Contenido RETIE esp'!$A$3:$B$24,2,FALSE),IF(B22=\"ANEXO2\",VLOOKUP(D22,'Contenido RETIE esp'!$A$26:$B$98,2,FALSE),IF(B22=\"ANEXO3\",VLOOKUP(D22,'Contenido RETIE esp'!$A$100:$B$303,2,FALSE),IF(B22=\"ANEXO4\",VLOOKUP(D22,'Contenido RETIE esp'!$A$305:$B$353,2,FALSE),IF(B22=\"RESOLUCIÓN\",VLOOKUP(D22,'Contenido RETIE esp'!$A$355:$B$363,2,FALSE),IF(B22=\"MEMORIAJUSTIFICATIVA\",VLOOKUP(D22,'Contenido RETIE esp'!$A$363:$B$398,2,FALSE),\"\")))))),\"\")","v":""}]
[null,null,{"$f":"IFERROR(VLOOKUP(B23,'Contenido RETIE esp'!$A$2:$B$398,2,FALSE),\"\")","v":""},null,{"$f":"+_xlfn.IFNA(+IF(B23=\"ANEXO1\",VLOOKUP(D23,'Contenido RETIE esp'!$A$3:$B$24,2,FALSE),IF(B23=\"ANEXO2\",VLOOKUP(D23,'Contenido RETIE esp'!$A$26:$B$98,2,FALSE),IF(B23=\"ANEXO3\",VLOOKUP(D23,'Contenido RETIE esp'!$A$100:$B$303,2,FALSE),IF(B23=\"ANEXO4\",VLOOKUP(D23,'Contenido RETIE esp'!$A$305:$B$353,2,FALSE),IF(B23=\"RESOLUCIÓN\",VLOOKUP(D23,'Contenido RETIE esp'!$A$355:$B$363,2,FALSE),IF(B23=\"MEMORIAJUSTIFICATIVA\",VLOOKUP(D23,'Contenido RETIE esp'!$A$363:$B$398,2,FALSE),\"\")))))),\"\")","v":""}]
[null,null,{"$f":"IFERROR(VLOOKUP(B24,'Contenido RETIE esp'!$A$2:$B$398,2,FALSE),\"\")","v":""},null,{"$f":"+_xlfn.IFNA(+IF(B24=\"ANEXO1\",VLOOKUP(D24,'Contenido RETIE esp'!$A$3:$B$24,2,FALSE),IF(B24=\"ANEXO2\",VLOOKUP(D24,'Contenido RETIE esp'!$A$26:$B$98,2,FALSE),IF(B24=\"ANEXO3\",VLOOKUP(D24,'Contenido RETIE esp'!$A$100:$B$303,2,FALSE),IF(B24=\"ANEXO4\",VLOOKUP(D24,'Contenido RETIE esp'!$A$305:$B$353,2,FALSE),IF(B24=\"RESOLUCIÓN\",VLOOKUP(D24,'Contenido RETIE esp'!$A$355:$B$363,2,FALSE),IF(B24=\"MEMORIAJUSTIFICATIVA\",VLOOKUP(D24,'Contenido RETIE esp'!$A$363:$B$398,2,FALSE),\"\")))))),\"\")","v":""}]
[null,null,{"$f":"IFERROR(VLOOKUP(B25,'Contenido RETIE esp'!$A$2:$B$398,2,FALSE),\"\")","v":""},null,{"$f":"+_xlfn.IFNA(+IF(B25=\"ANEXO1\",VLOOKUP(D25,'Contenido RETIE esp'!$A$3:$B$24,2,FALSE),IF(B25=\"ANEXO2\",VLOOKUP(D25,'Contenido RETIE esp'!$A$26:$B$98,2,FALSE),IF(B25=\"ANEXO3\",VLOOKUP(D25,'Contenido RETIE esp'!$A$100:$B$303,2,FALSE),IF(B25=\"ANEXO4\",VLOOKUP(D25,'Contenido RETIE esp'!$A$305:$B$353,2,FALSE),IF(B25=\"RESOLUCIÓN\",VLOOKUP(D25,'Contenido RETIE esp'!$A$355:$B$363,2,FALSE),IF(B25=\"MEMORIAJUSTIFICATIVA\",VLOOKUP(D25,'Contenido RETIE esp'!$A$363:$B$398,2,FALSE),\"\")))))),\"\")","v":""}]
[null,null,{"$f":"IFERROR(VLOOKUP(B26,'Contenido RETIE esp'!$A$2:$B$398,2,FALSE),\"\")","v":""},null,{"$f":"+_xlfn.IFNA(+IF(B26=\"ANEXO1\",VLOOKUP(D26,'Contenido RETIE esp'!$A$3:$B$24,2,FALSE),IF(B26=\"ANEXO2\",VLOOKUP(D26,'Contenido RETIE esp'!$A$26:$B$98,2,FALSE),IF(B26=\"ANEXO3\",VLOOKUP(D26,'Contenido RETIE esp'!$A$100:$B$303,2,FALSE),IF(B26=\"ANEXO4\",VLOOKUP(D26,'Contenido RETIE esp'!$A$305:$B$353,2,FALSE),IF(B26=\"RESOLUCIÓN\",VLOOKUP(D26,'Contenido RETIE esp'!$A$355:$B$363,2,FALSE),IF(B26=\"MEMORIAJUSTIFICATIVA\",VLOOKUP(D26,'Contenido RETIE esp'!$A$363:$B$398,2,FALSE),\"\")))))),\"\")","v":""}]
[null,null,{"$f":"IFERROR(VLOOKUP(B27,'Contenido RETIE esp'!$A$2:$B$398,2,FALSE),\"\")","v":""},null,{"$f":"+_xlfn.IFNA(+IF(B27=\"ANEXO1\",VLOOKUP(D27,'Contenido RETIE esp'!$A$3:$B$24,2,FALSE),IF(B27=\"ANEXO2\",VLOOKUP(D27,'Contenido RETIE esp'!$A$26:$B$98,2,FALSE),IF(B27=\"ANEXO3\",VLOOKUP(D27,'Contenido RETIE esp'!$A$100:$B$303,2,FALSE),IF(B27=\"ANEXO4\",VLOOKUP(D27,'Contenido RETIE esp'!$A$305:$B$353,2,FALSE),IF(B27=\"RESOLUCIÓN\",VLOOKUP(D27,'Contenido RETIE esp'!$A$355:$B$363,2,FALSE),IF(B27=\"MEMORIAJUSTIFICATIVA\",VLOOKUP(D27,'Contenido RETIE esp'!$A$363:$B$398,2,FALSE),\"\")))))),\"\")","v":""}]
[null,null,{"$f":"IFERROR(VLOOKUP(B28,'Contenido RETIE esp'!$A$2:$B$398,2,FALSE),\"\")","v":""},null,{"$f":"+_xlfn.IFNA(+IF(B28=\"ANEXO1\",VLOOKUP(D28,'Contenido RETIE esp'!$A$3:$B$24,2,FALSE),IF(B28=\"ANEXO2\",VLOOKUP(D28,'Contenido RETIE esp'!$A$26:$B$98,2,FALSE),IF(B28=\"ANEXO3\",VLOOKUP(D28,'Contenido RETIE esp'!$A$100:$B$303,2,FALSE),IF(B28=\"ANEXO4\",VLOOKUP(D28,'Contenido RETIE esp'!$A$305:$B$353,2,FALSE),IF(B28=\"RESOLUCIÓN\",VLOOKUP(D28,'Contenido RETIE esp'!$A$355:$B$363,2,FALSE),IF(B28=\"MEMORIAJUSTIFICATIVA\",VLOOKUP(D28,'Contenido RETIE esp'!$A$363:$B$398,2,FALSE),\"\")))))),\"\")","v":""}]
[null,null,{"$f":"IFERROR(VLOOKUP(B29,'Contenido RETIE esp'!$A$2:$B$398,2,FALSE),\"\")","v":""},null,{"$f":"+_xlfn.IFNA(+IF(B29=\"ANEXO1\",VLOOKUP(D29,'Contenido RETIE esp'!$A$3:$B$24,2,FALSE),IF(B29=\"ANEXO2\",VLOOKUP(D29,'Contenido RETIE esp'!$A$26:$B$98,2,FALSE),IF(B29=\"ANEXO3\",VLOOKUP(D29,'Contenido RETIE esp'!$A$100:$B$303,2,FALSE),IF(B29=\"ANEXO4\",VLOOKUP(D29,'Contenido RETIE esp'!$A$305:$B$353,2,FALSE),IF(B29=\"RESOLUCIÓN\",VLOOKUP(D29,'Contenido RETIE esp'!$A$355:$B$363,2,FALSE),IF(B29=\"MEMORIAJUSTIFICATIVA\",VLOOKUP(D29,'Contenido RETIE esp'!$A$363:$B$398,2,FALSE),\"\")))))),\"\")","v":""}]
[null,null,{"$f":"IFERROR(VLOOKUP(B30,'Contenido RETIE esp'!$A$2:$B$398,2,FALSE),\"\")","v":""},null,{"$f":"+_xlfn.IFNA(+IF(B30=\"ANEXO1\",VLOOKUP(D30,'Contenido RETIE esp'!$A$3:$B$24,2,FALSE),IF(B30=\"ANEXO2\",VLOOKUP(D30,'Contenido RETIE esp'!$A$26:$B$98,2,FALSE),IF(B30=\"ANEXO3\",VLOOKUP(D30,'Contenido RETIE esp'!$A$100:$B$303,2,FALSE),IF(B30=\"ANEXO4\",VLOOKUP(D30,'Contenido RETIE esp'!$A$305:$B$353,2,FALSE),IF(B30=\"RESOLUCIÓN\",VLOOKUP(D30,'Contenido RETIE esp'!$A$355:$B$363,2,FALSE),IF(B30=\"MEMORIAJUSTIFICATIVA\",VLOOKUP(D30,'Contenido RETIE esp'!$A$363:$B$398,2,FALSE),\"\")))))),\"\")","v":""}]
[null,null,{"$f":"IFERROR(VLOOKUP(B31,'Contenido RETIE esp'!$A$2:$B$398,2,FALSE),\"\")","v":""},null,{"$f":"+_xlfn.IFNA(+IF(B31=\"ANEXO1\",VLOOKUP(D31,'Contenido RETIE esp'!$A$3:$B$24,2,FALSE),IF(B31=\"ANEXO2\",VLOOKUP(D31,'Contenido RETIE esp'!$A$26:$B$98,2,FALSE),IF(B31=\"ANEXO3\",VLOOKUP(D31,'Contenido RETIE esp'!$A$100:$B$303,2,FALSE),IF(B31=\"ANEXO4\",VLOOKUP(D31,'Contenido RETIE esp'!$A$305:$B$353,2,FALSE),IF(B31=\"RESOLUCIÓN\",VLOOKUP(D31,'Contenido RETIE esp'!$A$355:$B$363,2,FALSE),IF(B31=\"MEMORIAJUSTIFICATIVA\",VLOOKUP(D31,'Contenido RETIE esp'!$A$363:$B$398,2,FALSE),\"\")))))),\"\")","v":""}]
[null,null,{"$f":"IFERROR(VLOOKUP(B32,'Contenido RETIE esp'!$A$2:$B$398,2,FALSE),\"\")","v":""},null,{"$f":"+_xlfn.IFNA(+IF(B32=\"ANEXO1\",VLOOKUP(D32,'Contenido RETIE esp'!$A$3:$B$24,2,FALSE),IF(B32=\"ANEXO2\",VLOOKUP(D32,'Contenido RETIE esp'!$A$26:$B$98,2,FALSE),IF(B32=\"ANEXO3\",VLOOKUP(D32,'Contenido RETIE esp'!$A$100:$B$303,2,FALSE),IF(B32=\"ANEXO4\",VLOOKUP(D32,'Contenido RETIE esp'!$A$305:$B$353,2,FALSE),IF(B32=\"RESOLUCIÓN\",VLOOKUP(D32,'Contenido RETIE esp'!$A$355:$B$363,2,FALSE),IF(B32=\"MEMORIAJUSTIFICATIVA\",VLOOKUP(D32,'Contenido RETIE esp'!$A$363:$B$398,2,FALSE),\"\")))))),\"\")","v":""}]
[null,null,{"$f":"IFERROR(VLOOKUP(B33,'Contenido RETIE esp'!$A$2:$B$398,2,FALSE),\"\")","v":""},null,{"$f":"+_xlfn.IFNA(+IF(B33=\"ANEXO1\",VLOOKUP(D33,'Contenido RETIE esp'!$A$3:$B$24,2,FALSE),IF(B33=\"ANEXO2\",VLOOKUP(D33,'Contenido RETIE esp'!$A$26:$B$98,2,FALSE),IF(B33=\"ANEXO3\",VLOOKUP(D33,'Contenido RETIE esp'!$A$100:$B$303,2,FALSE),IF(B33=\"ANEXO4\",VLOOKUP(D33,'Contenido RETIE esp'!$A$305:$B$353,2,FALSE),IF(B33=\"RESOLUCIÓN\",VLOOKUP(D33,'Contenido RETIE esp'!$A$355:$B$363,2,FALSE),IF(B33=\"MEMORIAJUSTIFICATIVA\",VLOOKUP(D33,'Contenido RETIE esp'!$A$363:$B$398,2,FALSE),\"\")))))),\"\")","v":""}]
[null,null,{"$f":"IFERROR(VLOOKUP(B34,'Contenido RETIE esp'!$A$2:$B$398,2,FALSE),\"\")","v":""},null,{"$f":"+_xlfn.IFNA(+IF(B34=\"ANEXO1\",VLOOKUP(D34,'Contenido RETIE esp'!$A$3:$B$24,2,FALSE),IF(B34=\"ANEXO2\",VLOOKUP(D34,'Contenido RETIE esp'!$A$26:$B$98,2,FALSE),IF(B34=\"ANEXO3\",VLOOKUP(D34,'Contenido RETIE esp'!$A$100:$B$303,2,FALSE),IF(B34=\"ANEXO4\",VLOOKUP(D34,'Contenido RETIE esp'!$A$305:$B$353,2,FALSE),IF(B34=\"RESOLUCIÓN\",VLOOKUP(D34,'Contenido RETIE esp'!$A$355:$B$363,2,FALSE),IF(B34=\"MEMORIAJUSTIFICATIVA\",VLOOKUP(D34,'Contenido RETIE esp'!$A$363:$B$398,2,FALSE),\"\")))))),\"\")","v":""}]
[null,null,{"$f":"IFERROR(VLOOKUP(B35,'Contenido RETIE esp'!$A$2:$B$398,2,FALSE),\"\")","v":""},null,{"$f":"+_xlfn.IFNA(+IF(B35=\"ANEXO1\",VLOOKUP(D35,'Contenido RETIE esp'!$A$3:$B$24,2,FALSE),IF(B35=\"ANEXO2\",VLOOKUP(D35,'Contenido RETIE esp'!$A$26:$B$98,2,FALSE),IF(B35=\"ANEXO3\",VLOOKUP(D35,'Contenido RETIE esp'!$A$100:$B$303,2,FALSE),IF(B35=\"ANEXO4\",VLOOKUP(D35,'Contenido RETIE esp'!$A$305:$B$353,2,FALSE),IF(B35=\"RESOLUCIÓN\",VLOOKUP(D35,'Contenido RETIE esp'!$A$355:$B$363,2,FALSE),IF(B35=\"MEMORIAJUSTIFICATIVA\",VLOOKUP(D35,'Contenido RETIE esp'!$A$363:$B$398,2,FALSE),\"\")))))),\"\")","v":""}]
[null,null,{"$f":"IFERROR(VLOOKUP(B36,'Contenido RETIE esp'!$A$2:$B$398,2,FALSE),\"\")","v":""},null,{"$f":"+_xlfn.IFNA(+IF(B36=\"ANEXO1\",VLOOKUP(D36,'Contenido RETIE esp'!$A$3:$B$24,2,FALSE),IF(B36=\"ANEXO2\",VLOOKUP(D36,'Contenido RETIE esp'!$A$26:$B$98,2,FALSE),IF(B36=\"ANEXO3\",VLOOKUP(D36,'Contenido RETIE esp'!$A$100:$B$303,2,FALSE),IF(B36=\"ANEXO4\",VLOOKUP(D36,'Contenido RETIE esp'!$A$305:$B$353,2,FALSE),IF(B36=\"RESOLUCIÓN\",VLOOKUP(D36,'Contenido RETIE esp'!$A$355:$B$363,2,FALSE),IF(B36=\"MEMORIAJUSTIFICATIVA\",VLOOKUP(D36,'Contenido RETIE esp'!$A$363:$B$398,2,FALSE),\"\")))))),\"\")","v":""}]
[null,null,{"$f":"IFERROR(VLOOKUP(B37,'Contenido RETIE esp'!$A$2:$B$398,2,FALSE),\"\")","v":""},null,{"$f":"+_xlfn.IFNA(+IF(B37=\"ANEXO1\",VLOOKUP(D37,'Contenido RETIE esp'!$A$3:$B$24,2,FALSE),IF(B37=\"ANEXO2\",VLOOKUP(D37,'Contenido RETIE esp'!$A$26:$B$98,2,FALSE),IF(B37=\"ANEXO3\",VLOOKUP(D37,'Contenido RETIE esp'!$A$100:$B$303,2,FALSE),IF(B37=\"ANEXO4\",VLOOKUP(D37,'Contenido RETIE esp'!$A$305:$B$353,2,FALSE),IF(B37=\"RESOLUCIÓN\",VLOOKUP(D37,'Contenido RETIE esp'!$A$355:$B$363,2,FALSE),IF(B37=\"MEMORIAJUSTIFICATIVA\",VLOOKUP(D37,'Contenido RETIE esp'!$A$363:$B$398,2,FALSE),\"\")))))),\"\")","v":""}]
[null,null,{"$f":"IFERROR(VLOOKUP(B38,'Contenido RETIE esp'!$A$2:$B$398,2,FALSE),\"\")","v":""},null,{"$f":"+_xlfn.IFNA(+IF(B38=\"ANEXO1\",VLOOKUP(D38,'Contenido RETIE esp'!$A$3:$B$24,2,FALSE),IF(B38=\"ANEXO2\",VLOOKUP(D38,'Contenido RETIE esp'!$A$26:$B$98,2,FALSE),IF(B38=\"ANEXO3\",VLOOKUP(D38,'Contenido RETIE esp'!$A$100:$B$303,2,FALSE),IF(B38=\"ANEXO4\",VLOOKUP(D38,'Contenido RETIE esp'!$A$305:$B$353,2,FALSE),IF(B38=\"RESOLUCIÓN\",VLOOKUP(D38,'Contenido RETIE esp'!$A$355:$B$363,2,FALSE),IF(B38=\"MEMORIAJUSTIFICATIVA\",VLOOKUP(D38,'Contenido RETIE esp'!$A$363:$B$398,2,FALSE),\"\")))))),\"\")","v":""}]
[null,null,{"$f":"IFERROR(VLOOKUP(B39,'Contenido RETIE esp'!$A$2:$B$398,2,FALSE),\"\")","v":""},null,{"$f":"+_xlfn.IFNA(+IF(B39=\"ANEXO1\",VLOOKUP(D39,'Contenido RETIE esp'!$A$3:$B$24,2,FALSE),IF(B39=\"ANEXO2\",VLOOKUP(D39,'Contenido RETIE esp'!$A$26:$B$98,2,FALSE),IF(B39=\"ANEXO3\",VLOOKUP(D39,'Contenido RETIE esp'!$A$100:$B$303,2,FALSE),IF(B39=\"ANEXO4\",VLOOKUP(D39,'Contenido RETIE esp'!$A$305:$B$353,2,FALSE),IF(B39=\"RESOLUCIÓN\",VLOOKUP(D39,'Contenido RETIE esp'!$A$355:$B$363,2,FALSE),IF(B39=\"MEMORIAJUSTIFICATIVA\",VLOOKUP(D39,'Contenido RETIE esp'!$A$363:$B$398,2,FALSE),\"\")))))),\"\")","v":""}]
[null,null,{"$f":"IFERROR(VLOOKUP(B40,'Contenido RETIE esp'!$A$2:$B$398,2,FALSE),\"\")","v":""},null,{"$f":"+_xlfn.IFNA(+IF(B40=\"ANEXO1\",VLOOKUP(D40,'Contenido RETIE esp'!$A$3:$B$24,2,FALSE),IF(B40=\"ANEXO2\",VLOOKUP(D40,'Contenido RETIE esp'!$A$26:$B$98,2,FALSE),IF(B40=\"ANEXO3\",VLOOKUP(D40,'Contenido RETIE esp'!$A$100:$B$303,2,FALSE),IF(B40=\"ANEXO4\",VLOOKUP(D40,'Contenido RETIE esp'!$A$305:$B$353,2,FALSE),IF(B40=\"RESOLUCIÓN\",VLOOKUP(D40,'Contenido RETIE esp'!$A$355:$B$363,2,FALSE),IF(B40=\"MEMORIAJUSTIFICATIVA\",VLOOKUP(D40,'Contenido RETIE esp'!$A$363:$B$398,2,FALSE),\"\")))))),\"\")","v":""}]
[null,null,{"$f":"IFERROR(VLOOKUP(B41,'Contenido RETIE esp'!$A$2:$B$398,2,FALSE),\"\")","v":""},null,{"$f":"+_xlfn.IFNA(+IF(B41=\"ANEXO1\",VLOOKUP(D41,'Contenido RETIE esp'!$A$3:$B$24,2,FALSE),IF(B41=\"ANEXO2\",VLOOKUP(D41,'Contenido RETIE esp'!$A$26:$B$98,2,FALSE),IF(B41=\"ANEXO3\",VLOOKUP(D41,'Contenido RETIE esp'!$A$100:$B$303,2,FALSE),IF(B41=\"ANEXO4\",VLOOKUP(D41,'Contenido RETIE esp'!$A$305:$B$353,2,FALSE),IF(B41=\"RESOLUCIÓN\",VLOOKUP(D41,'Contenido RETIE esp'!$A$355:$B$363,2,FALSE),IF(B41=\"MEMORIAJUSTIFICATIVA\",VLOOKUP(D41,'Contenido RETIE esp'!$A$363:$B$398,2,FALSE),\"\")))))),\"\")","v":""}]
[null,null,{"$f":"IFERROR(VLOOKUP(B42,'Contenido RETIE esp'!$A$2:$B$398,2,FALSE),\"\")","v":""},null,{"$f":"+_xlfn.IFNA(+IF(B42=\"ANEXO1\",VLOOKUP(D42,'Contenido RETIE esp'!$A$3:$B$24,2,FALSE),IF(B42=\"ANEXO2\",VLOOKUP(D42,'Contenido RETIE esp'!$A$26:$B$98,2,FALSE),IF(B42=\"ANEXO3\",VLOOKUP(D42,'Contenido RETIE esp'!$A$100:$B$303,2,FALSE),IF(B42=\"ANEXO4\",VLOOKUP(D42,'Contenido RETIE esp'!$A$305:$B$353,2,FALSE),IF(B42=\"RESOLUCIÓN\",VLOOKUP(D42,'Contenido RETIE esp'!$A$355:$B$363,2,FALSE),IF(B42=\"MEMORIAJUSTIFICATIVA\",VLOOKUP(D42,'Contenido RETIE esp'!$A$363:$B$398,2,FALSE),\"\")))))),\"\")","v":""}]
[null,null,{"$f":"IFERROR(VLOOKUP(B43,'Contenido RETIE esp'!$A$2:$B$398,2,FALSE),\"\")","v":""},null,{"$f":"+_xlfn.IFNA(+IF(B43=\"ANEXO1\",VLOOKUP(D43,'Contenido RETIE esp'!$A$3:$B$24,2,FALSE),IF(B43=\"ANEXO2\",VLOOKUP(D43,'Contenido RETIE esp'!$A$26:$B$98,2,FALSE),IF(B43=\"ANEXO3\",VLOOKUP(D43,'Contenido RETIE esp'!$A$100:$B$303,2,FALSE),IF(B43=\"ANEXO4\",VLOOKUP(D43,'Contenido RETIE esp'!$A$305:$B$353,2,FALSE),IF(B43=\"RESOLUCIÓN\",VLOOKUP(D43,'Contenido RETIE esp'!$A$355:$B$363,2,FALSE),IF(B43=\"MEMORIAJUSTIFICATIVA\",VLOOKUP(D43,'Contenido RETIE esp'!$A$363:$B$398,2,FALSE),\"\")))))),\"\")","v":""}]
[null,null,{"$f":"IFERROR(VLOOKUP(B44,'Contenido RETIE esp'!$A$2:$B$398,2,FALSE),\"\")","v":""},null,{"$f":"+_xlfn.IFNA(+IF(B44=\"ANEXO1\",VLOOKUP(D44,'Contenido RETIE esp'!$A$3:$B$24,2,FALSE),IF(B44=\"ANEXO2\",VLOOKUP(D44,'Contenido RETIE esp'!$A$26:$B$98,2,FALSE),IF(B44=\"ANEXO3\",VLOOKUP(D44,'Contenido RETIE esp'!$A$100:$B$303,2,FALSE),IF(B44=\"ANEXO4\",VLOOKUP(D44,'Contenido RETIE esp'!$A$305:$B$353,2,FALSE),IF(B44=\"RESOLUCIÓN\",VLOOKUP(D44,'Contenido RETIE esp'!$A$355:$B$363,2,FALSE),IF(B44=\"MEMORIAJUSTIFICATIVA\",VLOOKUP(D44,'Contenido RETIE esp'!$A$363:$B$398,2,FALSE),\"\")))))),\"\")","v":""}]
[null,null,{"$f":"IFERROR(VLOOKUP(B45,'Contenido RETIE esp'!$A$2:$B$398,2,FALSE),\"\")","v":""},null,{"$f":"+_xlfn.IFNA(+IF(B45=\"ANEXO1\",VLOOKUP(D45,'Contenido RETIE esp'!$A$3:$B$24,2,FALSE),IF(B45=\"ANEXO2\",VLOOKUP(D45,'Contenido RETIE esp'!$A$26:$B$98,2,FALSE),IF(B45=\"ANEXO3\",VLOOKUP(D45,'Contenido RETIE esp'!$A$100:$B$303,2,FALSE),IF(B45=\"ANEXO4\",VLOOKUP(D45,'Contenido RETIE esp'!$A$305:$B$353,2,FALSE),IF(B45=\"RESOLUCIÓN\",VLOOKUP(D45,'Contenido RETIE esp'!$A$355:$B$363,2,FALSE),IF(B45=\"MEMORIAJUSTIFICATIVA\",VLOOKUP(D45,'Contenido RETIE esp'!$A$363:$B$398,2,FALSE),\"\")))))),\"\")","v":""}]
[null,null,{"$f":"IFERROR(VLOOKUP(B46,'Contenido RETIE esp'!$A$2:$B$398,2,FALSE),\"\")","v":""},null,{"$f":"+_xlfn.IFNA(+IF(B46=\"ANEXO1\",VLOOKUP(D46,'Contenido RETIE esp'!$A$3:$B$24,2,FALSE),IF(B46=\"ANEXO2\",VLOOKUP(D46,'Contenido RETIE esp'!$A$26:$B$98,2,FALSE),IF(B46=\"ANEXO3\",VLOOKUP(D46,'Contenido RETIE esp'!$A$100:$B$303,2,FALSE),IF(B46=\"ANEXO4\",VLOOKUP(D46,'Contenido RETIE esp'!$A$305:$B$353,2,FALSE),IF(B46=\"RESOLUCIÓN\",VLOOKUP(D46,'Contenido RETIE esp'!$A$355:$B$363,2,FALSE),IF(B46=\"MEMORIAJUSTIFICATIVA\",VLOOKUP(D46,'Contenido RETIE esp'!$A$363:$B$398,2,FALSE),\"\")))))),\"\")","v":""}]
[null,null,{"$f":"IFERROR(VLOOKUP(B47,'Contenido RETIE esp'!$A$2:$B$398,2,FALSE),\"\")","v":""},null,{"$f":"+_xlfn.IFNA(+IF(B47=\"ANEXO1\",VLOOKUP(D47,'Contenido RETIE esp'!$A$3:$B$24,2,FALSE),IF(B47=\"ANEXO2\",VLOOKUP(D47,'Contenido RETIE esp'!$A$26:$B$98,2,FALSE),IF(B47=\"ANEXO3\",VLOOKUP(D47,'Contenido RETIE esp'!$A$100:$B$303,2,FALSE),IF(B47=\"ANEXO4\",VLOOKUP(D47,'Contenido RETIE esp'!$A$305:$B$353,2,FALSE),IF(B47=\"RESOLUCIÓN\",VLOOKUP(D47,'Contenido RETIE esp'!$A$355:$B$363,2,FALSE),IF(B47=\"MEMORIAJUSTIFICATIVA\",VLOOKUP(D47,'Contenido RETIE esp'!$A$363:$B$398,2,FALSE),\"\")))))),\"\")","v":""}]
[null,null,{"$f":"IFERROR(VLOOKUP(B48,'Contenido RETIE esp'!$A$2:$B$398,2,FALSE),\"\")","v":""},null,{"$f":"+_xlfn.IFNA(+IF(B48=\"ANEXO1\",VLOOKUP(D48,'Contenido RETIE esp'!$A$3:$B$24,2,FALSE),IF(B48=\"ANEXO2\",VLOOKUP(D48,'Contenido RETIE esp'!$A$26:$B$98,2,FALSE),IF(B48=\"ANEXO3\",VLOOKUP(D48,'Contenido RETIE esp'!$A$100:$B$303,2,FALSE),IF(B48=\"ANEXO4\",VLOOKUP(D48,'Contenido RETIE esp'!$A$305:$B$353,2,FALSE),IF(B48=\"RESOLUCIÓN\",VLOOKUP(D48,'Contenido RETIE esp'!$A$355:$B$363,2,FALSE),IF(B48=\"MEMORIAJUSTIFICATIVA\",VLOOKUP(D48,'Contenido RETIE esp'!$A$363:$B$398,2,FALSE),\"\")))))),\"\")","v":""}]
[null,null,{"$f":"IFERROR(VLOOKUP(B49,'Contenido RETIE esp'!$A$2:$B$398,2,FALSE),\"\")","v":""},null,{"$f":"+_xlfn.IFNA(+IF(B49=\"ANEXO1\",VLOOKUP(D49,'Contenido RETIE esp'!$A$3:$B$24,2,FALSE),IF(B49=\"ANEXO2\",VLOOKUP(D49,'Contenido RETIE esp'!$A$26:$B$98,2,FALSE),IF(B49=\"ANEXO3\",VLOOKUP(D49,'Contenido RETIE esp'!$A$100:$B$303,2,FALSE),IF(B49=\"ANEXO4\",VLOOKUP(D49,'Contenido RETIE esp'!$A$305:$B$353,2,FALSE),IF(B49=\"RESOLUCIÓN\",VLOOKUP(D49,'Contenido RETIE esp'!$A$355:$B$363,2,FALSE),IF(B49=\"MEMORIAJUSTIFICATIVA\",VLOOKUP(D49,'Contenido RETIE esp'!$A$363:$B$398,2,FALSE),\"\")))))),\"\")","v":""}]
[null,null,{"$f":"IFERROR(VLOOKUP(B50,'Contenido RETIE esp'!$A$2:$B$398,2,FALSE),\"\")","v":""},null,{"$f":"+_xlfn.IFNA(+IF(B50=\"ANEXO1\",VLOOKUP(D50,'Contenido RETIE esp'!$A$3:$B$24,2,FALSE),IF(B50=\"ANEXO2\",VLOOKUP(D50,'Contenido RETIE esp'!$A$26:$B$98,2,FALSE),IF(B50=\"ANEXO3\",VLOOKUP(D50,'Contenido RETIE esp'!$A$100:$B$303,2,FALSE),IF(B50=\"ANEXO4\",VLOOKUP(D50,'Contenido RETIE esp'!$A$305:$B$353,2,FALSE),IF(B50=\"RESOLUCIÓN\",VLOOKUP(D50,'Contenido RETIE esp'!$A$355:$B$363,2,FALSE),IF(B50=\"MEMORIAJUSTIFICATIVA\",VLOOKUP(D50,'Contenido RETIE esp'!$A$363:$B$398,2,FALSE),\"\")))))),\"\")","v":""}]
[null,null,{"$f":"IFERROR(VLOOKUP(B51,'Contenido RETIE esp'!$A$2:$B$398,2,FALSE),\"\")","v":""},null,{"$f":"+_xlfn.IFNA(+IF(B51=\"ANEXO1\",VLOOKUP(D51,'Contenido RETIE esp'!$A$3:$B$24,2,FALSE),IF(B51=\"ANEXO2\",VLOOKUP(D51,'Contenido RETIE esp'!$A$26:$B$98,2,FALSE),IF(B51=\"ANEXO3\",VLOOKUP(D51,'Contenido RETIE esp'!$A$100:$B$303,2,FALSE),IF(B51=\"ANEXO4\",VLOOKUP(D51,'Contenido RETIE esp'!$A$305:$B$353,2,FALSE),IF(B51=\"RESOLUCIÓN\",VLOOKUP(D51,'Contenido RETIE esp'!$A$355:$B$363,2,FALSE),IF(B51=\"MEMORIAJUSTIFICATIVA\",VLOOKUP(D51,'Contenido RETIE esp'!$A$363:$B$398,2,FALSE),\"\")))))),\"\")","v":""}]
[null,null,{"$f":"IFERROR(VLOOKUP(B52,'Contenido RETIE esp'!$A$2:$B$398,2,FALSE),\"\")","v":""},null,{"$f":"+_xlfn.IFNA(+IF(B52=\"ANEXO1\",VLOOKUP(D52,'Contenido RETIE esp'!$A$3:$B$24,2,FALSE),IF(B52=\"ANEXO2\",VLOOKUP(D52,'Contenido RETIE esp'!$A$26:$B$98,2,FALSE),IF(B52=\"ANEXO3\",VLOOKUP(D52,'Contenido RETIE esp'!$A$100:$B$303,2,FALSE),IF(B52=\"ANEXO4\",VLOOKUP(D52,'Contenido RETIE esp'!$A$305:$B$353,2,FALSE),IF(B52=\"RESOLUCIÓN\",VLOOKUP(D52,'Contenido RETIE esp'!$A$355:$B$363,2,FALSE),IF(B52=\"MEMORIAJUSTIFICATIVA\",VLOOKUP(D52,'Contenido RETIE esp'!$A$363:$B$398,2,FALSE),\"\")))))),\"\")","v":""}]
[null,null,{"$f":"IFERROR(VLOOKUP(B53,'Contenido RETIE esp'!$A$2:$B$398,2,FALSE),\"\")","v":""},null,{"$f":"+_xlfn.IFNA(+IF(B53=\"ANEXO1\",VLOOKUP(D53,'Contenido RETIE esp'!$A$3:$B$24,2,FALSE),IF(B53=\"ANEXO2\",VLOOKUP(D53,'Contenido RETIE esp'!$A$26:$B$98,2,FALSE),IF(B53=\"ANEXO3\",VLOOKUP(D53,'Contenido RETIE esp'!$A$100:$B$303,2,FALSE),IF(B53=\"ANEXO4\",VLOOKUP(D53,'Contenido RETIE esp'!$A$305:$B$353,2,FALSE),IF(B53=\"RESOLUCIÓN\",VLOOKUP(D53,'Contenido RETIE esp'!$A$355:$B$363,2,FALSE),IF(B53=\"MEMORIAJUSTIFICATIVA\",VLOOKUP(D53,'Contenido RETIE esp'!$A$363:$B$398,2,FALSE),\"\")))))),\"\")","v":""}]
[null,null,{"$f":"IFERROR(VLOOKUP(B54,'Contenido RETIE esp'!$A$2:$B$398,2,FALSE),\"\")","v":""},null,{"$f":"+_xlfn.IFNA(+IF(B54=\"ANEXO1\",VLOOKUP(D54,'Contenido RETIE esp'!$A$3:$B$24,2,FALSE),IF(B54=\"ANEXO2\",VLOOKUP(D54,'Contenido RETIE esp'!$A$26:$B$98,2,FALSE),IF(B54=\"ANEXO3\",VLOOKUP(D54,'Contenido RETIE esp'!$A$100:$B$303,2,FALSE),IF(B54=\"ANEXO4\",VLOOKUP(D54,'Contenido RETIE esp'!$A$305:$B$353,2,FALSE),IF(B54=\"RESOLUCIÓN\",VLOOKUP(D54,'Contenido RETIE esp'!$A$355:$B$363,2,FALSE),IF(B54=\"MEMORIAJUSTIFICATIVA\",VLOOKUP(D54,'Contenido RETIE esp'!$A$363:$B$398,2,FALSE),\"\")))))),\"\")","v":""}]
[null,null,{"$f":"IFERROR(VLOOKUP(B55,'Contenido RETIE esp'!$A$2:$B$398,2,FALSE),\"\")","v":""},null,{"$f":"+_xlfn.IFNA(+IF(B55=\"ANEXO1\",VLOOKUP(D55,'Contenido RETIE esp'!$A$3:$B$24,2,FALSE),IF(B55=\"ANEXO2\",VLOOKUP(D55,'Contenido RETIE esp'!$A$26:$B$98,2,FALSE),IF(B55=\"ANEXO3\",VLOOKUP(D55,'Contenido RETIE esp'!$A$100:$B$303,2,FALSE),IF(B55=\"ANEXO4\",VLOOKUP(D55,'Contenido RETIE esp'!$A$305:$B$353,2,FALSE),IF(B55=\"RESOLUCIÓN\",VLOOKUP(D55,'Contenido RETIE esp'!$A$355:$B$363,2,FALSE),IF(B55=\"MEMORIAJUSTIFICATIVA\",VLOOKUP(D55,'Contenido RETIE esp'!$A$363:$B$398,2,FALSE),\"\")))))),\"\")","v":""}]
[null,null,{"$f":"IFERROR(VLOOKUP(B56,'Contenido RETIE esp'!$A$2:$B$398,2,FALSE),\"\")","v":""},null,{"$f":"+_xlfn.IFNA(+IF(B56=\"ANEXO1\",VLOOKUP(D56,'Contenido RETIE esp'!$A$3:$B$24,2,FALSE),IF(B56=\"ANEXO2\",VLOOKUP(D56,'Contenido RETIE esp'!$A$26:$B$98,2,FALSE),IF(B56=\"ANEXO3\",VLOOKUP(D56,'Contenido RETIE esp'!$A$100:$B$303,2,FALSE),IF(B56=\"ANEXO4\",VLOOKUP(D56,'Contenido RETIE esp'!$A$305:$B$353,2,FALSE),IF(B56=\"RESOLUCIÓN\",VLOOKUP(D56,'Contenido RETIE esp'!$A$355:$B$363,2,FALSE),IF(B56=\"MEMORIAJUSTIFICATIVA\",VLOOKUP(D56,'Contenido RETIE esp'!$A$363:$B$398,2,FALSE),\"\")))))),\"\")","v":""}]
[null,null,{"$f":"IFERROR(VLOOKUP(B57,'Contenido RETIE esp'!$A$2:$B$398,2,FALSE),\"\")","v":""},null,{"$f":"+_xlfn.IFNA(+IF(B57=\"ANEXO1\",VLOOKUP(D57,'Contenido RETIE esp'!$A$3:$B$24,2,FALSE),IF(B57=\"ANEXO2\",VLOOKUP(D57,'Contenido RETIE esp'!$A$26:$B$98,2,FALSE),IF(B57=\"ANEXO3\",VLOOKUP(D57,'Contenido RETIE esp'!$A$100:$B$303,2,FALSE),IF(B57=\"ANEXO4\",VLOOKUP(D57,'Contenido RETIE esp'!$A$305:$B$353,2,FALSE),IF(B57=\"RESOLUCIÓN\",VLOOKUP(D57,'Contenido RETIE esp'!$A$355:$B$363,2,FALSE),IF(B57=\"MEMORIAJUSTIFICATIVA\",VLOOKUP(D57,'Contenido RETIE esp'!$A$363:$B$398,2,FALSE),\"\")))))),\"\")","v":""}]
[null,null,{"$f":"IFERROR(VLOOKUP(B58,'Contenido RETIE esp'!$A$2:$B$398,2,FALSE),\"\")","v":""},null,{"$f":"+_xlfn.IFNA(+IF(B58=\"ANEXO1\",VLOOKUP(D58,'Contenido RETIE esp'!$A$3:$B$24,2,FALSE),IF(B58=\"ANEXO2\",VLOOKUP(D58,'Contenido RETIE esp'!$A$26:$B$98,2,FALSE),IF(B58=\"ANEXO3\",VLOOKUP(D58,'Contenido RETIE esp'!$A$100:$B$303,2,FALSE),IF(B58=\"ANEXO4\",VLOOKUP(D58,'Contenido RETIE esp'!$A$305:$B$353,2,FALSE),IF(B58=\"RESOLUCIÓN\",VLOOKUP(D58,'Contenido RETIE esp'!$A$355:$B$363,2,FALSE),IF(B58=\"MEMORIAJUSTIFICATIVA\",VLOOKUP(D58,'Contenido RETIE esp'!$A$363:$B$398,2,FALSE),\"\")))))),\"\")","v":""}]
[null,null,{"$f":"IFERROR(VLOOKUP(B59,'Contenido RETIE esp'!$A$2:$B$398,2,FALSE),\"\")","v":""},null,{"$f":"+_xlfn.IFNA(+IF(B59=\"ANEXO1\",VLOOKUP(D59,'Contenido RETIE esp'!$A$3:$B$24,2,FALSE),IF(B59=\"ANEXO2\",VLOOKUP(D59,'Contenido RETIE esp'!$A$26:$B$98,2,FALSE),IF(B59=\"ANEXO3\",VLOOKUP(D59,'Contenido RETIE esp'!$A$100:$B$303,2,FALSE),IF(B59=\"ANEXO4\",VLOOKUP(D59,'Contenido RETIE esp'!$A$305:$B$353,2,FALSE),IF(B59=\"RESOLUCIÓN\",VLOOKUP(D59,'Contenido RETIE esp'!$A$355:$B$363,2,FALSE),IF(B59=\"MEMORIAJUSTIFICATIVA\",VLOOKUP(D59,'Contenido RETIE esp'!$A$363:$B$398,2,FALSE),\"\")))))),\"\")","v":""}]
[null,null,{"$f":"IFERROR(VLOOKUP(B60,'Contenido RETIE esp'!$A$2:$B$398,2,FALSE),\"\")","v":""},null,{"$f":"+_xlfn.IFNA(+IF(B60=\"ANEXO1\",VLOOKUP(D60,'Contenido RETIE esp'!$A$3:$B$24,2,FALSE),IF(B60=\"ANEXO2\",VLOOKUP(D60,'Contenido RETIE esp'!$A$26:$B$98,2,FALSE),IF(B60=\"ANEXO3\",VLOOKUP(D60,'Contenido RETIE esp'!$A$100:$B$303,2,FALSE),IF(B60=\"ANEXO4\",VLOOKUP(D60,'Contenido RETIE esp'!$A$305:$B$353,2,FALSE),IF(B60=\"RESOLUCIÓN\",VLOOKUP(D60,'Contenido RETIE esp'!$A$355:$B$363,2,FALSE),IF(B60=\"MEMORIAJUSTIFICATIVA\",VLOOKUP(D60,'Contenido RETIE esp'!$A$363:$B$398,2,FALSE),\"\")))))),\"\")","v":""}]
[null,null,{"$f":"IFERROR(VLOOKUP(B61,'Contenido RETIE esp'!$A$2:$B$398,2,FALSE),\"\")","v":""},null,{"$f":"+_xlfn.IFNA(+IF(B61=\"ANEXO1\",VLOOKUP(D61,'Contenido RETIE esp'!$A$3:$B$24,2,FALSE),IF(B61=\"ANEXO2\",VLOOKUP(D61,'Contenido RETIE esp'!$A$26:$B$98,2,FALSE),IF(B61=\"ANEXO3\",VLOOKUP(D61,'Contenido RETIE esp'!$A$100:$B$303,2,FALSE),IF(B61=\"ANEXO4\",VLOOKUP(D61,'Contenido RETIE esp'!$A$305:$B$353,2,FALSE),IF(B61=\"RESOLUCIÓN\",VLOOKUP(D61,'Contenido RETIE esp'!$A$355:$B$363,2,FALSE),IF(B61=\"MEMORIAJUSTIFICATIVA\",VLOOKUP(D61,'Contenido RETIE esp'!$A$363:$B$398,2,FALSE),\"\")))))),\"\")","v":""}]
[null,null,{"$f":"IFERROR(VLOOKUP(B62,'Contenido RETIE esp'!$A$2:$B$398,2,FALSE),\"\")","v":""},null,{"$f":"+_xlfn.IFNA(+IF(B62=\"ANEXO1\",VLOOKUP(D62,'Contenido RETIE esp'!$A$3:$B$24,2,FALSE),IF(B62=\"ANEXO2\",VLOOKUP(D62,'Contenido RETIE esp'!$A$26:$B$98,2,FALSE),IF(B62=\"ANEXO3\",VLOOKUP(D62,'Contenido RETIE esp'!$A$100:$B$303,2,FALSE),IF(B62=\"ANEXO4\",VLOOKUP(D62,'Contenido RETIE esp'!$A$305:$B$353,2,FALSE),IF(B62=\"RESOLUCIÓN\",VLOOKUP(D62,'Contenido RETIE esp'!$A$355:$B$363,2,FALSE),IF(B62=\"MEMORIAJUSTIFICATIVA\",VLOOKUP(D62,'Contenido RETIE esp'!$A$363:$B$398,2,FALSE),\"\")))))),\"\")","v":""}]
[null,null,{"$f":"IFERROR(VLOOKUP(B63,'Contenido RETIE esp'!$A$2:$B$398,2,FALSE),\"\")","v":""},null,{"$f":"+_xlfn.IFNA(+IF(B63=\"ANEXO1\",VLOOKUP(D63,'Contenido RETIE esp'!$A$3:$B$24,2,FALSE),IF(B63=\"ANEXO2\",VLOOKUP(D63,'Contenido RETIE esp'!$A$26:$B$98,2,FALSE),IF(B63=\"ANEXO3\",VLOOKUP(D63,'Contenido RETIE esp'!$A$100:$B$303,2,FALSE),IF(B63=\"ANEXO4\",VLOOKUP(D63,'Contenido RETIE esp'!$A$305:$B$353,2,FALSE),IF(B63=\"RESOLUCIÓN\",VLOOKUP(D63,'Contenido RETIE esp'!$A$355:$B$363,2,FALSE),IF(B63=\"MEMORIAJUSTIFICATIVA\",VLOOKUP(D63,'Contenido RETIE esp'!$A$363:$B$398,2,FALSE),\"\")))))),\"\")","v":""}]
[null,null,{"$f":"IFERROR(VLOOKUP(B64,'Contenido RETIE esp'!$A$2:$B$398,2,FALSE),\"\")","v":""},null,{"$f":"+_xlfn.IFNA(+IF(B64=\"ANEXO1\",VLOOKUP(D64,'Contenido RETIE esp'!$A$3:$B$24,2,FALSE),IF(B64=\"ANEXO2\",VLOOKUP(D64,'Contenido RETIE esp'!$A$26:$B$98,2,FALSE),IF(B64=\"ANEXO3\",VLOOKUP(D64,'Contenido RETIE esp'!$A$100:$B$303,2,FALSE),IF(B64=\"ANEXO4\",VLOOKUP(D64,'Contenido RETIE esp'!$A$305:$B$353,2,FALSE),IF(B64=\"RESOLUCIÓN\",VLOOKUP(D64,'Contenido RETIE esp'!$A$355:$B$363,2,FALSE),IF(B64=\"MEMORIAJUSTIFICATIVA\",VLOOKUP(D64,'Contenido RETIE esp'!$A$363:$B$398,2,FALSE),\"\")))))),\"\")","v":""}]
[null,null,{"$f":"IFERROR(VLOOKUP(B65,'Contenido RETIE esp'!$A$2:$B$398,2,FALSE),\"\")","v":""},null,{"$f":"+_xlfn.IFNA(+IF(B65=\"ANEXO1\",VLOOKUP(D65,'Contenido RETIE esp'!$A$3:$B$24,2,FALSE),IF(B65=\"ANEXO2\",VLOOKUP(D65,'Contenido RETIE esp'!$A$26:$B$98,2,FALSE),IF(B65=\"ANEXO3\",VLOOKUP(D65,'Contenido RETIE esp'!$A$100:$B$303,2,FALSE),IF(B65=\"ANEXO4\",VLOOKUP(D65,'Contenido RETIE esp'!$A$305:$B$353,2,FALSE),IF(B65=\"RESOLUCIÓN\",VLOOKUP(D65,'Contenido RETIE esp'!$A$355:$B$363,2,FALSE),IF(B65=\"MEMORIAJUSTIFICATIVA\",VLOOKUP(D65,'Contenido RETIE esp'!$A$363:$B$398,2,FALSE),\"\")))))),\"\")","v":""}]
[null,null,{"$f":"IFERROR(VLOOKUP(B66,'Contenido RETIE esp'!$A$2:$B$398,2,FALSE),\"\")","v":""},null,{"$f":"+_xlfn.IFNA(+IF(B66=\"ANEXO1\",VLOOKUP(D66,'Contenido RETIE esp'!$A$3:$B$24,2,FALSE),IF(B66=\"ANEXO2\",VLOOKUP(D66,'Contenido RETIE esp'!$A$26:$B$98,2,FALSE),IF(B66=\"ANEXO3\",VLOOKUP(D66,'Contenido RETIE esp'!$A$100:$B$303,2,FALSE),IF(B66=\"ANEXO4\",VLOOKUP(D66,'Contenido RETIE esp'!$A$305:$B$353,2,FALSE),IF(B66=\"RESOLUCIÓN\",VLOOKUP(D66,'Contenido RETIE esp'!$A$355:$B$363,2,FALSE),IF(B66=\"MEMORIAJUSTIFICATIVA\",VLOOKUP(D66,'Contenido RETIE esp'!$A$363:$B$398,2,FALSE),\"\")))))),\"\")","v":""}]
[null,null,{"$f":"IFERROR(VLOOKUP(B67,'Contenido RETIE esp'!$A$2:$B$398,2,FALSE),\"\")","v":""},null,{"$f":"+_xlfn.IFNA(+IF(B67=\"ANEXO1\",VLOOKUP(D67,'Contenido RETIE esp'!$A$3:$B$24,2,FALSE),IF(B67=\"ANEXO2\",VLOOKUP(D67,'Contenido RETIE esp'!$A$26:$B$98,2,FALSE),IF(B67=\"ANEXO3\",VLOOKUP(D67,'Contenido RETIE esp'!$A$100:$B$303,2,FALSE),IF(B67=\"ANEXO4\",VLOOKUP(D67,'Contenido RETIE esp'!$A$305:$B$353,2,FALSE),IF(B67=\"RESOLUCIÓN\",VLOOKUP(D67,'Contenido RETIE esp'!$A$355:$B$363,2,FALSE),IF(B67=\"MEMORIAJUSTIFICATIVA\",VLOOKUP(D67,'Contenido RETIE esp'!$A$363:$B$398,2,FALSE),\"\")))))),\"\")","v":""}]
[null,null,{"$f":"IFERROR(VLOOKUP(B68,'Contenido RETIE esp'!$A$2:$B$398,2,FALSE),\"\")","v":""},null,{"$f":"+_xlfn.IFNA(+IF(B68=\"ANEXO1\",VLOOKUP(D68,'Contenido RETIE esp'!$A$3:$B$24,2,FALSE),IF(B68=\"ANEXO2\",VLOOKUP(D68,'Contenido RETIE esp'!$A$26:$B$98,2,FALSE),IF(B68=\"ANEXO3\",VLOOKUP(D68,'Contenido RETIE esp'!$A$100:$B$303,2,FALSE),IF(B68=\"ANEXO4\",VLOOKUP(D68,'Contenido RETIE esp'!$A$305:$B$353,2,FALSE),IF(B68=\"RESOLUCIÓN\",VLOOKUP(D68,'Contenido RETIE esp'!$A$355:$B$363,2,FALSE),IF(B68=\"MEMORIAJUSTIFICATIVA\",VLOOKUP(D68,'Contenido RETIE esp'!$A$363:$B$398,2,FALSE),\"\")))))),\"\")","v":""}]
[null,null,{"$f":"IFERROR(VLOOKUP(B69,'Contenido RETIE esp'!$A$2:$B$398,2,FALSE),\"\")","v":""},null,{"$f":"+_xlfn.IFNA(+IF(B69=\"ANEXO1\",VLOOKUP(D69,'Contenido RETIE esp'!$A$3:$B$24,2,FALSE),IF(B69=\"ANEXO2\",VLOOKUP(D69,'Contenido RETIE esp'!$A$26:$B$98,2,FALSE),IF(B69=\"ANEXO3\",VLOOKUP(D69,'Contenido RETIE esp'!$A$100:$B$303,2,FALSE),IF(B69=\"ANEXO4\",VLOOKUP(D69,'Contenido RETIE esp'!$A$305:$B$353,2,FALSE),IF(B69=\"RESOLUCIÓN\",VLOOKUP(D69,'Contenido RETIE esp'!$A$355:$B$363,2,FALSE),IF(B69=\"MEMORIAJUSTIFICATIVA\",VLOOKUP(D69,'Contenido RETIE esp'!$A$363:$B$398,2,FALSE),\"\")))))),\"\")","v":""}]
[null,null,{"$f":"IFERROR(VLOOKUP(B70,'Contenido RETIE esp'!$A$2:$B$398,2,FALSE),\"\")","v":""},null,{"$f":"+_xlfn.IFNA(+IF(B70=\"ANEXO1\",VLOOKUP(D70,'Contenido RETIE esp'!$A$3:$B$24,2,FALSE),IF(B70=\"ANEXO2\",VLOOKUP(D70,'Contenido RETIE esp'!$A$26:$B$98,2,FALSE),IF(B70=\"ANEXO3\",VLOOKUP(D70,'Contenido RETIE esp'!$A$100:$B$303,2,FALSE),IF(B70=\"ANEXO4\",VLOOKUP(D70,'Contenido RETIE esp'!$A$305:$B$353,2,FALSE),IF(B70=\"RESOLUCIÓN\",VLOOKUP(D70,'Contenido RETIE esp'!$A$355:$B$363,2,FALSE),IF(B70=\"MEMORIAJUSTIFICATIVA\",VLOOKUP(D70,'Contenido RETIE esp'!$A$363:$B$398,2,FALSE),\"\")))))),\"\")","v":""}]
[null,null,{"$f":"IFERROR(VLOOKUP(B71,'Contenido RETIE esp'!$A$2:$B$398,2,FALSE),\"\")","v":""},null,{"$f":"+_xlfn.IFNA(+IF(B71=\"ANEXO1\",VLOOKUP(D71,'Contenido RETIE esp'!$A$3:$B$24,2,FALSE),IF(B71=\"ANEXO2\",VLOOKUP(D71,'Contenido RETIE esp'!$A$26:$B$98,2,FALSE),IF(B71=\"ANEXO3\",VLOOKUP(D71,'Contenido RETIE esp'!$A$100:$B$303,2,FALSE),IF(B71=\"ANEXO4\",VLOOKUP(D71,'Contenido RETIE esp'!$A$305:$B$353,2,FALSE),IF(B71=\"RESOLUCIÓN\",VLOOKUP(D71,'Contenido RETIE esp'!$A$355:$B$363,2,FALSE),IF(B71=\"MEMORIAJUSTIFICATIVA\",VLOOKUP(D71,'Contenido RETIE esp'!$A$363:$B$398,2,FALSE),\"\")))))),\"\")","v":""}]
[null,null,{"$f":"IFERROR(VLOOKUP(B72,'Contenido RETIE esp'!$A$2:$B$398,2,FALSE),\"\")","v":""},null,{"$f":"+_xlfn.IFNA(+IF(B72=\"ANEXO1\",VLOOKUP(D72,'Contenido RETIE esp'!$A$3:$B$24,2,FALSE),IF(B72=\"ANEXO2\",VLOOKUP(D72,'Contenido RETIE esp'!$A$26:$B$98,2,FALSE),IF(B72=\"ANEXO3\",VLOOKUP(D72,'Contenido RETIE esp'!$A$100:$B$303,2,FALSE),IF(B72=\"ANEXO4\",VLOOKUP(D72,'Contenido RETIE esp'!$A$305:$B$353,2,FALSE),IF(B72=\"RESOLUCIÓN\",VLOOKUP(D72,'Contenido RETIE esp'!$A$355:$B$363,2,FALSE),IF(B72=\"MEMORIAJUSTIFICATIVA\",VLOOKUP(D72,'Contenido RETIE esp'!$A$363:$B$398,2,FALSE),\"\")))))),\"\")","v":""}]
[null,null,{"$f":"IFERROR(VLOOKUP(B73,'Contenido RETIE esp'!$A$2:$B$398,2,FALSE),\"\")","v":""},null,{"$f":"+_xlfn.IFNA(+IF(B73=\"ANEXO1\",VLOOKUP(D73,'Contenido RETIE esp'!$A$3:$B$24,2,FALSE),IF(B73=\"ANEXO2\",VLOOKUP(D73,'Contenido RETIE esp'!$A$26:$B$98,2,FALSE),IF(B73=\"ANEXO3\",VLOOKUP(D73,'Contenido RETIE esp'!$A$100:$B$303,2,FALSE),IF(B73=\"ANEXO4\",VLOOKUP(D73,'Contenido RETIE esp'!$A$305:$B$353,2,FALSE),IF(B73=\"RESOLUCIÓN\",VLOOKUP(D73,'Contenido RETIE esp'!$A$355:$B$363,2,FALSE),IF(B73=\"MEMORIAJUSTIFICATIVA\",VLOOKUP(D73,'Contenido RETIE esp'!$A$363:$B$398,2,FALSE),\"\")))))),\"\")","v":""}]
[null,null,{"$f":"IFERROR(VLOOKUP(B74,'Contenido RETIE esp'!$A$2:$B$398,2,FALSE),\"\")","v":""},null,{"$f":"+_xlfn.IFNA(+IF(B74=\"ANEXO1\",VLOOKUP(D74,'Contenido RETIE esp'!$A$3:$B$24,2,FALSE),IF(B74=\"ANEXO2\",VLOOKUP(D74,'Contenido RETIE esp'!$A$26:$B$98,2,FALSE),IF(B74=\"ANEXO3\",VLOOKUP(D74,'Contenido RETIE esp'!$A$100:$B$303,2,FALSE),IF(B74=\"ANEXO4\",VLOOKUP(D74,'Contenido RETIE esp'!$A$305:$B$353,2,FALSE),IF(B74=\"RESOLUCIÓN\",VLOOKUP(D74,'Contenido RETIE esp'!$A$355:$B$363,2,FALSE),IF(B74=\"MEMORIAJUSTIFICATIVA\",VLOOKUP(D74,'Contenido RETIE esp'!$A$363:$B$398,2,FALSE),\"\")))))),\"\")","v":""}]
[null,null,{"$f":"IFERROR(VLOOKUP(B75,'Contenido RETIE esp'!$A$2:$B$398,2,FALSE),\"\")","v":""},null,{"$f":"+_xlfn.IFNA(+IF(B75=\"ANEXO1\",VLOOKUP(D75,'Contenido RETIE esp'!$A$3:$B$24,2,FALSE),IF(B75=\"ANEXO2\",VLOOKUP(D75,'Contenido RETIE esp'!$A$26:$B$98,2,FALSE),IF(B75=\"ANEXO3\",VLOOKUP(D75,'Contenido RETIE esp'!$A$100:$B$303,2,FALSE),IF(B75=\"ANEXO4\",VLOOKUP(D75,'Contenido RETIE esp'!$A$305:$B$353,2,FALSE),IF(B75=\"RESOLUCIÓN\",VLOOKUP(D75,'Contenido RETIE esp'!$A$355:$B$363,2,FALSE),IF(B75=\"MEMORIAJUSTIFICATIVA\",VLOOKUP(D75,'Contenido RETIE esp'!$A$363:$B$398,2,FALSE),\"\")))))),\"\")","v":""}]
[null,null,{"$f":"IFERROR(VLOOKUP(B76,'Contenido RETIE esp'!$A$2:$B$398,2,FALSE),\"\")","v":""},null,{"$f":"+_xlfn.IFNA(+IF(B76=\"ANEXO1\",VLOOKUP(D76,'Contenido RETIE esp'!$A$3:$B$24,2,FALSE),IF(B76=\"ANEXO2\",VLOOKUP(D76,'Contenido RETIE esp'!$A$26:$B$98,2,FALSE),IF(B76=\"ANEXO3\",VLOOKUP(D76,'Contenido RETIE esp'!$A$100:$B$303,2,FALSE),IF(B76=\"ANEXO4\",VLOOKUP(D76,'Contenido RETIE esp'!$A$305:$B$353,2,FALSE),IF(B76=\"RESOLUCIÓN\",VLOOKUP(D76,'Contenido RETIE esp'!$A$355:$B$363,2,FALSE),IF(B76=\"MEMORIAJUSTIFICATIVA\",VLOOKUP(D76,'Contenido RETIE esp'!$A$363:$B$398,2,FALSE),\"\")))))),\"\")","v":""}]
[null,null,{"$f":"IFERROR(VLOOKUP(B77,'Contenido RETIE esp'!$A$2:$B$398,2,FALSE),\"\")","v":""},null,{"$f":"+_xlfn.IFNA(+IF(B77=\"ANEXO1\",VLOOKUP(D77,'Contenido RETIE esp'!$A$3:$B$24,2,FALSE),IF(B77=\"ANEXO2\",VLOOKUP(D77,'Contenido RETIE esp'!$A$26:$B$98,2,FALSE),IF(B77=\"ANEXO3\",VLOOKUP(D77,'Contenido RETIE esp'!$A$100:$B$303,2,FALSE),IF(B77=\"ANEXO4\",VLOOKUP(D77,'Contenido RETIE esp'!$A$305:$B$353,2,FALSE),IF(B77=\"RESOLUCIÓN\",VLOOKUP(D77,'Contenido RETIE esp'!$A$355:$B$363,2,FALSE),IF(B77=\"MEMORIAJUSTIFICATIVA\",VLOOKUP(D77,'Contenido RETIE esp'!$A$363:$B$398,2,FALSE),\"\")))))),\"\")","v":""}]
[null,null,{"$f":"IFERROR(VLOOKUP(B78,'Contenido RETIE esp'!$A$2:$B$398,2,FALSE),\"\")","v":""},null,{"$f":"+_xlfn.IFNA(+IF(B78=\"ANEXO1\",VLOOKUP(D78,'Contenido RETIE esp'!$A$3:$B$24,2,FALSE),IF(B78=\"ANEXO2\",VLOOKUP(D78,'Contenido RETIE esp'!$A$26:$B$98,2,FALSE),IF(B78=\"ANEXO3\",VLOOKUP(D78,'Contenido RETIE esp'!$A$100:$B$303,2,FALSE),IF(B78=\"ANEXO4\",VLOOKUP(D78,'Contenido RETIE esp'!$A$305:$B$353,2,FALSE),IF(B78=\"RESOLUCIÓN\",VLOOKUP(D78,'Contenido RETIE esp'!$A$355:$B$363,2,FALSE),IF(B78=\"MEMORIAJUSTIFICATIVA\",VLOOKUP(D78,'Contenido RETIE esp'!$A$363:$B$398,2,FALSE),\"\")))))),\"\")","v":""}]
[null,null,{"$f":"IFERROR(VLOOKUP(B79,'Contenido RETIE esp'!$A$2:$B$398,2,FALSE),\"\")","v":""},null,{"$f":"+_xlfn.IFNA(+IF(B79=\"ANEXO1\",VLOOKUP(D79,'Contenido RETIE esp'!$A$3:$B$24,2,FALSE),IF(B79=\"ANEXO2\",VLOOKUP(D79,'Contenido RETIE esp'!$A$26:$B$98,2,FALSE),IF(B79=\"ANEXO3\",VLOOKUP(D79,'Contenido RETIE esp'!$A$100:$B$303,2,FALSE),IF(B79=\"ANEXO4\",VLOOKUP(D79,'Contenido RETIE esp'!$A$305:$B$353,2,FALSE),IF(B79=\"RESOLUCIÓN\",VLOOKUP(D79,'Contenido RETIE esp'!$A$355:$B$363,2,FALSE),IF(B79=\"MEMORIAJUSTIFICATIVA\",VLOOKUP(D79,'Contenido RETIE esp'!$A$363:$B$398,2,FALSE),\"\")))))),\"\")","v":""}]
[null,null,{"$f":"IFERROR(VLOOKUP(B80,'Contenido RETIE esp'!$A$2:$B$398,2,FALSE),\"\")","v":""},null,{"$f":"+_xlfn.IFNA(+IF(B80=\"ANEXO1\",VLOOKUP(D80,'Contenido RETIE esp'!$A$3:$B$24,2,FALSE),IF(B80=\"ANEXO2\",VLOOKUP(D80,'Contenido RETIE esp'!$A$26:$B$98,2,FALSE),IF(B80=\"ANEXO3\",VLOOKUP(D80,'Contenido RETIE esp'!$A$100:$B$303,2,FALSE),IF(B80=\"ANEXO4\",VLOOKUP(D80,'Contenido RETIE esp'!$A$305:$B$353,2,FALSE),IF(B80=\"RESOLUCIÓN\",VLOOKUP(D80,'Contenido RETIE esp'!$A$355:$B$363,2,FALSE),IF(B80=\"MEMORIAJUSTIFICATIVA\",VLOOKUP(D80,'Contenido RETIE esp'!$A$363:$B$398,2,FALSE),\"\")))))),\"\")","v":""}]
[null,null,{"$f":"IFERROR(VLOOKUP(B81,'Contenido RETIE esp'!$A$2:$B$398,2,FALSE),\"\")","v":""},null,{"$f":"+_xlfn.IFNA(+IF(B81=\"ANEXO1\",VLOOKUP(D81,'Contenido RETIE esp'!$A$3:$B$24,2,FALSE),IF(B81=\"ANEXO2\",VLOOKUP(D81,'Contenido RETIE esp'!$A$26:$B$98,2,FALSE),IF(B81=\"ANEXO3\",VLOOKUP(D81,'Contenido RETIE esp'!$A$100:$B$303,2,FALSE),IF(B81=\"ANEXO4\",VLOOKUP(D81,'Contenido RETIE esp'!$A$305:$B$353,2,FALSE),IF(B81=\"RESOLUCIÓN\",VLOOKUP(D81,'Contenido RETIE esp'!$A$355:$B$363,2,FALSE),IF(B81=\"MEMORIAJUSTIFICATIVA\",VLOOKUP(D81,'Contenido RETIE esp'!$A$363:$B$398,2,FALSE),\"\")))))),\"\")","v":""}]
[null,null,{"$f":"IFERROR(VLOOKUP(B82,'Contenido RETIE esp'!$A$2:$B$398,2,FALSE),\"\")","v":""},null,{"$f":"+_xlfn.IFNA(+IF(B82=\"ANEXO1\",VLOOKUP(D82,'Contenido RETIE esp'!$A$3:$B$24,2,FALSE),IF(B82=\"ANEXO2\",VLOOKUP(D82,'Contenido RETIE esp'!$A$26:$B$98,2,FALSE),IF(B82=\"ANEXO3\",VLOOKUP(D82,'Contenido RETIE esp'!$A$100:$B$303,2,FALSE),IF(B82=\"ANEXO4\",VLOOKUP(D82,'Contenido RETIE esp'!$A$305:$B$353,2,FALSE),IF(B82=\"RESOLUCIÓN\",VLOOKUP(D82,'Contenido RETIE esp'!$A$355:$B$363,2,FALSE),IF(B82=\"MEMORIAJUSTIFICATIVA\",VLOOKUP(D82,'Contenido RETIE esp'!$A$363:$B$398,2,FALSE),\"\")))))),\"\")","v":""}]
[null,null,{"$f":"IFERROR(VLOOKUP(B83,'Contenido RETIE esp'!$A$2:$B$398,2,FALSE),\"\")","v":""},null,{"$f":"+_xlfn.IFNA(+IF(B83=\"ANEXO1\",VLOOKUP(D83,'Contenido RETIE esp'!$A$3:$B$24,2,FALSE),IF(B83=\"ANEXO2\",VLOOKUP(D83,'Contenido RETIE esp'!$A$26:$B$98,2,FALSE),IF(B83=\"ANEXO3\",VLOOKUP(D83,'Contenido RETIE esp'!$A$100:$B$303,2,FALSE),IF(B83=\"ANEXO4\",VLOOKUP(D83,'Contenido RETIE esp'!$A$305:$B$353,2,FALSE),IF(B83=\"RESOLUCIÓN\",VLOOKUP(D83,'Contenido RETIE esp'!$A$355:$B$363,2,FALSE),IF(B83=\"MEMORIAJUSTIFICATIVA\",VLOOKUP(D83,'Contenido RETIE esp'!$A$363:$B$398,2,FALSE),\"\")))))),\"\")","v":""}]
[null,null,{"$f":"IFERROR(VLOOKUP(B84,'Contenido RETIE esp'!$A$2:$B$398,2,FALSE),\"\")","v":""},null,{"$f":"+_xlfn.IFNA(+IF(B84=\"ANEXO1\",VLOOKUP(D84,'Contenido RETIE esp'!$A$3:$B$24,2,FALSE),IF(B84=\"ANEXO2\",VLOOKUP(D84,'Contenido RETIE esp'!$A$26:$B$98,2,FALSE),IF(B84=\"ANEXO3\",VLOOKUP(D84,'Contenido RETIE esp'!$A$100:$B$303,2,FALSE),IF(B84=\"ANEXO4\",VLOOKUP(D84,'Contenido RETIE esp'!$A$305:$B$353,2,FALSE),IF(B84=\"RESOLUCIÓN\",VLOOKUP(D84,'Contenido RETIE esp'!$A$355:$B$363,2,FALSE),IF(B84=\"MEMORIAJUSTIFICATIVA\",VLOOKUP(D84,'Contenido RETIE esp'!$A$363:$B$398,2,FALSE),\"\")))))),\"\")","v":""}]
[null,null,{"$f":"IFERROR(VLOOKUP(B85,'Contenido RETIE esp'!$A$2:$B$398,2,FALSE),\"\")","v":""},null,{"$f":"+_xlfn.IFNA(+IF(B85=\"ANEXO1\",VLOOKUP(D85,'Contenido RETIE esp'!$A$3:$B$24,2,FALSE),IF(B85=\"ANEXO2\",VLOOKUP(D85,'Contenido RETIE esp'!$A$26:$B$98,2,FALSE),IF(B85=\"ANEXO3\",VLOOKUP(D85,'Contenido RETIE esp'!$A$100:$B$303,2,FALSE),IF(B85=\"ANEXO4\",VLOOKUP(D85,'Contenido RETIE esp'!$A$305:$B$353,2,FALSE),IF(B85=\"RESOLUCIÓN\",VLOOKUP(D85,'Contenido RETIE esp'!$A$355:$B$363,2,FALSE),IF(B85=\"MEMORIAJUSTIFICATIVA\",VLOOKUP(D85,'Contenido RETIE esp'!$A$363:$B$398,2,FALSE),\"\")))))),\"\")","v":""}]
[null,null,{"$f":"IFERROR(VLOOKUP(B86,'Contenido RETIE esp'!$A$2:$B$398,2,FALSE),\"\")","v":""},null,{"$f":"+_xlfn.IFNA(+IF(B86=\"ANEXO1\",VLOOKUP(D86,'Contenido RETIE esp'!$A$3:$B$24,2,FALSE),IF(B86=\"ANEXO2\",VLOOKUP(D86,'Contenido RETIE esp'!$A$26:$B$98,2,FALSE),IF(B86=\"ANEXO3\",VLOOKUP(D86,'Contenido RETIE esp'!$A$100:$B$303,2,FALSE),IF(B86=\"ANEXO4\",VLOOKUP(D86,'Contenido RETIE esp'!$A$305:$B$353,2,FALSE),IF(B86=\"RESOLUCIÓN\",VLOOKUP(D86,'Contenido RETIE esp'!$A$355:$B$363,2,FALSE),IF(B86=\"MEMORIAJUSTIFICATIVA\",VLOOKUP(D86,'Contenido RETIE esp'!$A$363:$B$398,2,FALSE),\"\")))))),\"\")","v":""}]
[null,null,{"$f":"IFERROR(VLOOKUP(B87,'Contenido RETIE esp'!$A$2:$B$398,2,FALSE),\"\")","v":""},null,{"$f":"+_xlfn.IFNA(+IF(B87=\"ANEXO1\",VLOOKUP(D87,'Contenido RETIE esp'!$A$3:$B$24,2,FALSE),IF(B87=\"ANEXO2\",VLOOKUP(D87,'Contenido RETIE esp'!$A$26:$B$98,2,FALSE),IF(B87=\"ANEXO3\",VLOOKUP(D87,'Contenido RETIE esp'!$A$100:$B$303,2,FALSE),IF(B87=\"ANEXO4\",VLOOKUP(D87,'Contenido RETIE esp'!$A$305:$B$353,2,FALSE),IF(B87=\"RESOLUCIÓN\",VLOOKUP(D87,'Contenido RETIE esp'!$A$355:$B$363,2,FALSE),IF(B87=\"MEMORIAJUSTIFICATIVA\",VLOOKUP(D87,'Contenido RETIE esp'!$A$363:$B$398,2,FALSE),\"\")))))),\"\")","v":""}]
[null,null,{"$f":"IFERROR(VLOOKUP(B88,'Contenido RETIE esp'!$A$2:$B$398,2,FALSE),\"\")","v":""},null,{"$f":"+_xlfn.IFNA(+IF(B88=\"ANEXO1\",VLOOKUP(D88,'Contenido RETIE esp'!$A$3:$B$24,2,FALSE),IF(B88=\"ANEXO2\",VLOOKUP(D88,'Contenido RETIE esp'!$A$26:$B$98,2,FALSE),IF(B88=\"ANEXO3\",VLOOKUP(D88,'Contenido RETIE esp'!$A$100:$B$303,2,FALSE),IF(B88=\"ANEXO4\",VLOOKUP(D88,'Contenido RETIE esp'!$A$305:$B$353,2,FALSE),IF(B88=\"RESOLUCIÓN\",VLOOKUP(D88,'Contenido RETIE esp'!$A$355:$B$363,2,FALSE),IF(B88=\"MEMORIAJUSTIFICATIVA\",VLOOKUP(D88,'Contenido RETIE esp'!$A$363:$B$398,2,FALSE),\"\")))))),\"\")","v":""}]
[null,null,{"$f":"IFERROR(VLOOKUP(B89,'Contenido RETIE esp'!$A$2:$B$398,2,FALSE),\"\")","v":""},null,{"$f":"+_xlfn.IFNA(+IF(B89=\"ANEXO1\",VLOOKUP(D89,'Contenido RETIE esp'!$A$3:$B$24,2,FALSE),IF(B89=\"ANEXO2\",VLOOKUP(D89,'Contenido RETIE esp'!$A$26:$B$98,2,FALSE),IF(B89=\"ANEXO3\",VLOOKUP(D89,'Contenido RETIE esp'!$A$100:$B$303,2,FALSE),IF(B89=\"ANEXO4\",VLOOKUP(D89,'Contenido RETIE esp'!$A$305:$B$353,2,FALSE),IF(B89=\"RESOLUCIÓN\",VLOOKUP(D89,'Contenido RETIE esp'!$A$355:$B$363,2,FALSE),IF(B89=\"MEMORIAJUSTIFICATIVA\",VLOOKUP(D89,'Contenido RETIE esp'!$A$363:$B$398,2,FALSE),\"\")))))),\"\")","v":""}]
[null,null,{"$f":"IFERROR(VLOOKUP(B90,'Contenido RETIE esp'!$A$2:$B$398,2,FALSE),\"\")","v":""},null,{"$f":"+_xlfn.IFNA(+IF(B90=\"ANEXO1\",VLOOKUP(D90,'Contenido RETIE esp'!$A$3:$B$24,2,FALSE),IF(B90=\"ANEXO2\",VLOOKUP(D90,'Contenido RETIE esp'!$A$26:$B$98,2,FALSE),IF(B90=\"ANEXO3\",VLOOKUP(D90,'Contenido RETIE esp'!$A$100:$B$303,2,FALSE),IF(B90=\"ANEXO4\",VLOOKUP(D90,'Contenido RETIE esp'!$A$305:$B$353,2,FALSE),IF(B90=\"RESOLUCIÓN\",VLOOKUP(D90,'Contenido RETIE esp'!$A$355:$B$363,2,FALSE),IF(B90=\"MEMORIAJUSTIFICATIVA\",VLOOKUP(D90,'Contenido RETIE esp'!$A$363:$B$398,2,FALSE),\"\")))))),\"\")","v":""}]
[null,null,{"$f":"IFERROR(VLOOKUP(B91,'Contenido RETIE esp'!$A$2:$B$398,2,FALSE),\"\")","v":""},null,{"$f":"+_xlfn.IFNA(+IF(B91=\"ANEXO1\",VLOOKUP(D91,'Contenido RETIE esp'!$A$3:$B$24,2,FALSE),IF(B91=\"ANEXO2\",VLOOKUP(D91,'Contenido RETIE esp'!$A$26:$B$98,2,FALSE),IF(B91=\"ANEXO3\",VLOOKUP(D91,'Contenido RETIE esp'!$A$100:$B$303,2,FALSE),IF(B91=\"ANEXO4\",VLOOKUP(D91,'Contenido RETIE esp'!$A$305:$B$353,2,FALSE),IF(B91=\"RESOLUCIÓN\",VLOOKUP(D91,'Contenido RETIE esp'!$A$355:$B$363,2,FALSE),IF(B91=\"MEMORIAJUSTIFICATIVA\",VLOOKUP(D91,'Contenido RETIE esp'!$A$363:$B$398,2,FALSE),\"\")))))),\"\")","v":""}]
[null,null,{"$f":"IFERROR(VLOOKUP(B92,'Contenido RETIE esp'!$A$2:$B$398,2,FALSE),\"\")","v":""},null,{"$f":"+_xlfn.IFNA(+IF(B92=\"ANEXO1\",VLOOKUP(D92,'Contenido RETIE esp'!$A$3:$B$24,2,FALSE),IF(B92=\"ANEXO2\",VLOOKUP(D92,'Contenido RETIE esp'!$A$26:$B$98,2,FALSE),IF(B92=\"ANEXO3\",VLOOKUP(D92,'Contenido RETIE esp'!$A$100:$B$303,2,FALSE),IF(B92=\"ANEXO4\",VLOOKUP(D92,'Contenido RETIE esp'!$A$305:$B$353,2,FALSE),IF(B92=\"RESOLUCIÓN\",VLOOKUP(D92,'Contenido RETIE esp'!$A$355:$B$363,2,FALSE),IF(B92=\"MEMORIAJUSTIFICATIVA\",VLOOKUP(D92,'Contenido RETIE esp'!$A$363:$B$398,2,FALSE),\"\")))))),\"\")","v":""}]
[null,null,{"$f":"IFERROR(VLOOKUP(B93,'Contenido RETIE esp'!$A$2:$B$398,2,FALSE),\"\")","v":""},null,{"$f":"+_xlfn.IFNA(+IF(B93=\"ANEXO1\",VLOOKUP(D93,'Contenido RETIE esp'!$A$3:$B$24,2,FALSE),IF(B93=\"ANEXO2\",VLOOKUP(D93,'Contenido RETIE esp'!$A$26:$B$98,2,FALSE),IF(B93=\"ANEXO3\",VLOOKUP(D93,'Contenido RETIE esp'!$A$100:$B$303,2,FALSE),IF(B93=\"ANEXO4\",VLOOKUP(D93,'Contenido RETIE esp'!$A$305:$B$353,2,FALSE),IF(B93=\"RESOLUCIÓN\",VLOOKUP(D93,'Contenido RETIE esp'!$A$355:$B$363,2,FALSE),IF(B93=\"MEMORIAJUSTIFICATIVA\",VLOOKUP(D93,'Contenido RETIE esp'!$A$363:$B$398,2,FALSE),\"\")))))),\"\")","v":""}]
[null,null,{"$f":"IFERROR(VLOOKUP(B94,'Contenido RETIE esp'!$A$2:$B$398,2,FALSE),\"\")","v":""},null,{"$f":"+_xlfn.IFNA(+IF(B94=\"ANEXO1\",VLOOKUP(D94,'Contenido RETIE esp'!$A$3:$B$24,2,FALSE),IF(B94=\"ANEXO2\",VLOOKUP(D94,'Contenido RETIE esp'!$A$26:$B$98,2,FALSE),IF(B94=\"ANEXO3\",VLOOKUP(D94,'Contenido RETIE esp'!$A$100:$B$303,2,FALSE),IF(B94=\"ANEXO4\",VLOOKUP(D94,'Contenido RETIE esp'!$A$305:$B$353,2,FALSE),IF(B94=\"RESOLUCIÓN\",VLOOKUP(D94,'Contenido RETIE esp'!$A$355:$B$363,2,FALSE),IF(B94=\"MEMORIAJUSTIFICATIVA\",VLOOKUP(D94,'Contenido RETIE esp'!$A$363:$B$398,2,FALSE),\"\")))))),\"\")","v":""}]
[null,null,{"$f":"IFERROR(VLOOKUP(B95,'Contenido RETIE esp'!$A$2:$B$398,2,FALSE),\"\")","v":""},null,{"$f":"+_xlfn.IFNA(+IF(B95=\"ANEXO1\",VLOOKUP(D95,'Contenido RETIE esp'!$A$3:$B$24,2,FALSE),IF(B95=\"ANEXO2\",VLOOKUP(D95,'Contenido RETIE esp'!$A$26:$B$98,2,FALSE),IF(B95=\"ANEXO3\",VLOOKUP(D95,'Contenido RETIE esp'!$A$100:$B$303,2,FALSE),IF(B95=\"ANEXO4\",VLOOKUP(D95,'Contenido RETIE esp'!$A$305:$B$353,2,FALSE),IF(B95=\"RESOLUCIÓN\",VLOOKUP(D95,'Contenido RETIE esp'!$A$355:$B$363,2,FALSE),IF(B95=\"MEMORIAJUSTIFICATIVA\",VLOOKUP(D95,'Contenido RETIE esp'!$A$363:$B$398,2,FALSE),\"\")))))),\"\")","v":""}]
[null,null,{"$f":"IFERROR(VLOOKUP(B96,'Contenido RETIE esp'!$A$2:$B$398,2,FALSE),\"\")","v":""},null,{"$f":"+_xlfn.IFNA(+IF(B96=\"ANEXO1\",VLOOKUP(D96,'Contenido RETIE esp'!$A$3:$B$24,2,FALSE),IF(B96=\"ANEXO2\",VLOOKUP(D96,'Contenido RETIE esp'!$A$26:$B$98,2,FALSE),IF(B96=\"ANEXO3\",VLOOKUP(D96,'Contenido RETIE esp'!$A$100:$B$303,2,FALSE),IF(B96=\"ANEXO4\",VLOOKUP(D96,'Contenido RETIE esp'!$A$305:$B$353,2,FALSE),IF(B96=\"RESOLUCIÓN\",VLOOKUP(D96,'Contenido RETIE esp'!$A$355:$B$363,2,FALSE),IF(B96=\"MEMORIAJUSTIFICATIVA\",VLOOKUP(D96,'Contenido RETIE esp'!$A$363:$B$398,2,FALSE),\"\")))))),\"\")","v":""}]
[null,null,{"$f":"IFERROR(VLOOKUP(B97,'Contenido RETIE esp'!$A$2:$B$398,2,FALSE),\"\")","v":""},null,{"$f":"+_xlfn.IFNA(+IF(B97=\"ANEXO1\",VLOOKUP(D97,'Contenido RETIE esp'!$A$3:$B$24,2,FALSE),IF(B97=\"ANEXO2\",VLOOKUP(D97,'Contenido RETIE esp'!$A$26:$B$98,2,FALSE),IF(B97=\"ANEXO3\",VLOOKUP(D97,'Contenido RETIE esp'!$A$100:$B$303,2,FALSE),IF(B97=\"ANEXO4\",VLOOKUP(D97,'Contenido RETIE esp'!$A$305:$B$353,2,FALSE),IF(B97=\"RESOLUCIÓN\",VLOOKUP(D97,'Contenido RETIE esp'!$A$355:$B$363,2,FALSE),IF(B97=\"MEMORIAJUSTIFICATIVA\",VLOOKUP(D97,'Contenido RETIE esp'!$A$363:$B$398,2,FALSE),\"\")))))),\"\")","v":""}]
[null,null,{"$f":"IFERROR(VLOOKUP(B98,'Contenido RETIE esp'!$A$2:$B$398,2,FALSE),\"\")","v":""},null,{"$f":"+_xlfn.IFNA(+IF(B98=\"ANEXO1\",VLOOKUP(D98,'Contenido RETIE esp'!$A$3:$B$24,2,FALSE),IF(B98=\"ANEXO2\",VLOOKUP(D98,'Contenido RETIE esp'!$A$26:$B$98,2,FALSE),IF(B98=\"ANEXO3\",VLOOKUP(D98,'Contenido RETIE esp'!$A$100:$B$303,2,FALSE),IF(B98=\"ANEXO4\",VLOOKUP(D98,'Contenido RETIE esp'!$A$305:$B$353,2,FALSE),IF(B98=\"RESOLUCIÓN\",VLOOKUP(D98,'Contenido RETIE esp'!$A$355:$B$363,2,FALSE),IF(B98=\"MEMORIAJUSTIFICATIVA\",VLOOKUP(D98,'Contenido RETIE esp'!$A$363:$B$398,2,FALSE),\"\")))))),\"\")","v":""}]
[null,null,{"$f":"IFERROR(VLOOKUP(B99,'Contenido RETIE esp'!$A$2:$B$398,2,FALSE),\"\")","v":""},null,{"$f":"+_xlfn.IFNA(+IF(B99=\"ANEXO1\",VLOOKUP(D99,'Contenido RETIE esp'!$A$3:$B$24,2,FALSE),IF(B99=\"ANEXO2\",VLOOKUP(D99,'Contenido RETIE esp'!$A$26:$B$98,2,FALSE),IF(B99=\"ANEXO3\",VLOOKUP(D99,'Contenido RETIE esp'!$A$100:$B$303,2,FALSE),IF(B99=\"ANEXO4\",VLOOKUP(D99,'Contenido RETIE esp'!$A$305:$B$353,2,FALSE),IF(B99=\"RESOLUCIÓN\",VLOOKUP(D99,'Contenido RETIE esp'!$A$355:$B$363,2,FALSE),IF(B99=\"MEMORIAJUSTIFICATIVA\",VLOOKUP(D99,'Contenido RETIE esp'!$A$363:$B$398,2,FALSE),\"\")))))),\"\")","v":""}]
[null,null,{"$f":"IFERROR(VLOOKUP(B100,'Contenido RETIE esp'!$A$2:$B$398,2,FALSE),\"\")","v":""},null,{"$f":"+_xlfn.IFNA(+IF(B100=\"ANEXO1\",VLOOKUP(D100,'Contenido RETIE esp'!$A$3:$B$24,2,FALSE),IF(B100=\"ANEXO2\",VLOOKUP(D100,'Contenido RETIE esp'!$A$26:$B$98,2,FALSE),IF(B100=\"ANEXO3\",VLOOKUP(D100,'Contenido RETIE esp'!$A$100:$B$303,2,FALSE),IF(B100=\"ANEXO4\",VLOOKUP(D100,'Contenido RETIE esp'!$A$305:$B$353,2,FALSE),IF(B100=\"RESOLUCIÓN\",VLOOKUP(D100,'Contenido RETIE esp'!$A$355:$B$363,2,FALSE),IF(B100=\"MEMORIAJUSTIFICATIVA\",VLOOKUP(D100,'Contenido RETIE esp'!$A$363:$B$398,2,FALSE),\"\")))))),\"\")","v":""}]
[null,null,{"$f":"IFERROR(VLOOKUP(B101,'Contenido RETIE esp'!$A$2:$B$398,2,FALSE),\"\")","v":""},null,{"$f":"+_xlfn.IFNA(+IF(B101=\"ANEXO1\",VLOOKUP(D101,'Contenido RETIE esp'!$A$3:$B$24,2,FALSE),IF(B101=\"ANEXO2\",VLOOKUP(D101,'Contenido RETIE esp'!$A$26:$B$98,2,FALSE),IF(B101=\"ANEXO3\",VLOOKUP(D101,'Contenido RETIE esp'!$A$100:$B$303,2,FALSE),IF(B101=\"ANEXO4\",VLOOKUP(D101,'Contenido RETIE esp'!$A$305:$B$353,2,FALSE),IF(B101=\"RESOLUCIÓN\",VLOOKUP(D101,'Contenido RETIE esp'!$A$355:$B$363,2,FALSE),IF(B101=\"MEMORIAJUSTIFICATIVA\",VLOOKUP(D101,'Contenido RETIE esp'!$A$363:$B$398,2,FALSE),\"\")))))),\"\")","v":""}]

{"sheet":"Contenido RETIE gral","index":1,"n_rows":206,"n_cols":8,"rows_kept":206,"cut":false,"hidden":true,"merged":[[0,0,0,3]]}
["Contenido RETIE general"]
["ANEXO1","ANEXO2","ANEXO3","ANEXO4","RESOLUCIÓN","MEMORIAJUSTIFICATIVA",null,"TIPO DE COMENTARIO"]
["TÍTULO 1","TÍTULO 1","TÍTULO 1","TÍTULO 1","CONSIDERANDOS",1,null,"Editorial"]
["TÍTULO 2","ARTÍCULO 2.1.1","ARTÍCULO 3.1.1","ARTÍCULO 4.1.1","RESUELVE","1.1",null,"Técnico"]
["ARTÍCULO 1.2.1","ARTÍCULO 2.1.2","3.1.1.1","4.1.1.1","ARTÍCULO 1","1.1.1"]
["ARTÍCULO 1.2.2","2.1.2.1","3.1.1.2","4.1.1.2","ARTÍCULO 2","1.1.2"]
["TÍTULO 3","2.1.2.2","ARTÍCULO 3.1.2","ARTÍCULO 4.1.2","ARTÍCULO 3","1.2"]
["ARTÍCULO 1.3.1","2.1.2.3","CAPÍTULO 1","ARTÍCULO 4.1.3","Parágrafo 1","1.2.1"]
["ARTÍCULO 1.3.2 ","TÍTULO 2","TÍTULO 2","ARTÍCULO 4.1.4","Parágrafo 2","1.2.1.1"]
["ARTÍCULO 1.3.3","ARTÍCULO 2.2.1","ARTÍCULO 3.2.1","ARTÍCULO 4.1.5","Parágrafo 3","1.2.1.2"]
["1.3.3.1","ARTÍCULO 2.2.2","ARTÍCULO 3.2.2","TÍTULO 2","ARTÍCULO 4","1.2.1.2.1"]
["1.3.3.2","TÍTULO 3","ARTÍCULO 3.2.3","ARTÍCULO 4.2.1",null,"1.2.1.2.2"]
["1.3.3.3","ARTÍCULO 2.3.1","TÍTULO 3","ARTÍCULO 4.2.2",null,"1.2.1.2.3"]
["TÍTULO 4","ARTÍCULO 2.3.2","ARTÍCULO 3.3.1","TÍTULO 3",null,"1.2.1.2.4"]
["TÍTULO 5","ARTÍCULO 2.3.3","ARTÍCULO 3.3.2","ARTÍCULO 4.3.1",null,"1.3"]
["ARTÍCULO 1.5.1","ARTÍCULO 2.3.4","3.3.2.1","4.3.1.1",null,"1.3.1"]
["1.5.1.1","2.3.4.1","ARTÍCULO 3.3.3","4.3.1.2",null,"1.3.2"]
["1.5.1.2","2.3.4.2","3.3.3.1","ARTÍCULO 4.3.2",null,"1.3.3"]
["1.5.1.3","ARTÍCULO 2.3.5","3.3.3.2","4.3.2.1",null,"1.3.4"]
["1.5.1.3.1","ARTÍCULO 2.3.6","3.3.3.3","ARTÍCULO 4.3.3",null,2]
["1.5.1.3.2","ARTÍCULO 2.3.7","3.3.3.4","4.3.3.1",null,3]
["1.5.1.3.3","2.3.7.1","3.3.3.5","ARTÍCULO 4.3.4",null,"3.1"]
["1.5.1.3.4","2.3.7.2","TÍTULO 4","4.3.4.1",null,"a"]
["1.5.1.3.5","ARTÍCULO 2.3.8","TÍTULO 5","TÍTULO 4",null,"b"]
[null,"ARTÍCULO 2.3.9","TÍTULO 6","ARTÍCULO 4.4.1",null,"3.2"]
[null,"ARTÍCULO 2.3.10","TÍTULO 7","4.4.1.1",null,"3.3"]
[null,"ARTÍCULO 2.3.11","TÍTULO 8","4.4.1.2",null,"3.4"]
[null,"ARTÍCULO 2.3.12","ARTÍCULO 3.8.1","4.4.1.3",null,"3.5"]
[null,"ARTÍCULO 2.3.13","TÍTULO 9","4.4.1.4",null,4]
[null,"ARTÍCULO 2.3.14","TÍTULO 10","4.4.1.5",null,"4.1"]
[null,"ARTÍCULO 2.3.15","TÍTULO 11","4.4.1.6",null,"4.2"]
[null,"2.3.15.1","ARTÍCULO 3.11.1","4.4.1.7",null,"4.3"]
[null,"2.3.15.2","ARTÍCULO 3.11.2","4.4.1.8",null,"4.4"]
[null,"ARTÍCULO 2.3.16","ARTÍCULO 3.11.3","ARTÍCULO 4.4.2",null,"4.5"]
[null,"ARTÍCULO 2.3.17","ARTÍCULO 3.11.4","4.4.2.1",null,5]
[null,"2.3.17.1","ARTÍCULO 3.11.5","4.4.2.2",null,6]
[null,"2.3.17.2","TÍTULO 12","4.4.2.3"]
[null,"2.3.17.3","ARTÍCULO 3.12.1","4.4.2.4"]
[null,"ARTÍCULO 2.3.18","ARTÍCULO 3.12.2","4.4.2.5"]
[null,"2.3.18.1","TÍTULO 13","ARTÍCULO 4.4.3"]
[null,"2.3.18.2","ARTÍCULO 3.13.1","4.4.3.1"]
[null,"2.3.18.3","ARTÍCULO 3.13.2","4.4.3.2"]
[null,"ARTÍCULO 2.3.19","3.13.2.1","4.4.3.3"]
[null,"2.3.19.1","3.13.2.2","4.4.3.4"]
[null,"2.3.19.2","3.13.2.3","4.4.3.5"]
[null,"2.3.19.3","ARTÍCULO 3.13.3","4.4.3.6"]
[null,"ARTÍCULO 2.3.20","ARTÍCULO 3.13.4","TÍTULO 5"]
[null,"ARTÍCULO 2.3.21","3.13.4.1","ARTÍCULO 4.5.1"]
[null,"ARTÍCULO 2.3.22","3.13.4.2","ARTÍCULO 4.5.2"]
[null,"ARTÍCULO 2.3.23","3.13.4.3","TÍTULO 6"]
[null,"ARTÍCULO 2.3.24","ARTÍCULO 3.13.5","ARTÍCULO 4.6.1"]
[null,"2.3.24.1","ARTÍCULO 3.13.6"]
[null,"2.3.24.2","3.13.6.1"]
[null,"ARTÍCULO 2.3.25","3.13.6.2"]
[null,"ARTÍCULO 2.3.26","TÍTULO 14"]
[null,"2.3.26.1","ARTÍCULO 3.14.1"]
[null,"2.3.26.2","3.14.1.1"]
[null,"ARTÍCULO 2.3.27","3.14.1.2"]
[null,"2.3.27.1","3.14.1.3"]
[null,"2.3.27.2","3.14.1.4"]
[null,"2.3.27.3","TÍTULO 15"]
[null,"ARTÍCULO 2.3.28","ARTÍCULO 3.15.1"]
[null,"ARTÍCULO 2.3.29","ARTÍCULO 3.15.2"]
[null,"2.3.29.1","TÍTULO 16"]
[null,"2.3.29.2","ARTÍCULO 3.16.1"]
[null,"2.3.29.3","ARTÍCULO 3.16.2"]
[null,"2.3.29.4","ARTÍCULO 3.16.3"]
[null,"ARTÍCULO 2.3.30","ARTÍCULO 3.16.4"]
[null,"ARTÍCULO 2.3.31","ARTÍCULO 3.16.5"]
[null,"2.3.31.1","ARTÍCULO 3.16.6"]
[null,"2.3.31.2","ARTÍCULO 3.16.7"]
[null,"2.3.31.3","ARTÍCULO 3.16.8"]
[null,"2.3.31.4","TÍTULO 17"]
[null,"ARTÍCULO 2.3.32","ARTÍCULO 3.17.1"]
[null,"ARTÍCULO 2.3.33","ARTÍCULO 3.17.2"]
[null,null,"ARTÍCULO 3.17.3"]
[null,null,"TÍTULO 18"]
[null,null,"ARTÍCULO 3.18.1"]
[null,null,"ARTÍCULO 3.18.2"]
[null,null,"ARTÍCULO 3.18.3"]
[null,null,"ARTÍCULO 3.18.4"]
[null,null,"ARTÍCULO 3.18.5"]
[null,null,"ARTÍCULO 3.18.6"]
[null,null,"ARTÍCULO 3.18.7"]
[null,null,"3.18.7.1"]
[null,null,"3.18.7.2"]
[null,null,"3.18.7.3"]
[null,null,"3.18.7.4"]
[null,null,"3.18.7.5"]
[null,null,"ARTÍCULO 3.18.8"]
[null,null,"ARTÍCULO 3.18.9"]
[null,null,"ARTÍCULO 3.18.10"]
[null,null,"ARTÍCULO 3.18.11"]
[null,null,"ARTÍCULO 3.18.12"]
[null,null,"ARTÍCULO 3.18.13"]
[null,null,"ARTÍCULO 3.18.14"]
[null,null,"ARTÍCULO 3.18.15"]
[null,null,"ARTÍCULO 3.18.16"]
[null,null,"ARTÍCULO 3.18.17"]
[null,null,"ARTÍCULO 3.18.18"]
[null,null,"ARTÍCULO 3.18.19"]
[null,null,"ARTÍCULO 3.18.20"]
[null,null,"ARTÍCULO 3.18.21"]
[null,null,"ARTÍCULO 3.18.22"]
[null,null,"ARTÍCULO 3.18.23"]
[null,null,"ARTÍCULO 3.18.24"]
[null,null,"ARTÍCULO 3.18.25"]
[null,null,"ARTÍCULO 3.18.26"]
[null,null,"ARTÍCULO 3.18.27"]
[null,null,"ARTÍCULO 3.18.28"]
[null,null,"ARTÍCULO 3.18.29"]
[null,null,"ARTÍCULO 3.18.30"]
[null,null,"ARTÍCULO 3.18.31"]
[null,null,"CAPÍTULO 2"]
[null,null,"TÍTULO 19"]
[null,null,"ARTÍCULO 3.19.1"]
[null,null,"ARTÍCULO 3.19.2"]
[null,null,"ARTÍCULO 3.19.3"]
[null,null,"ARTÍCULO 3.19.4"]
[null,null,"ARTÍCULO 3.19.5"]
[null,null,"ARTÍCULO 3.19.6"]
[null,null,"ARTÍCULO 3.19.7"]
[null,null,"ARTÍCULO 3.19.8"]
[null,null,"CAPÍTULO 3"]
[null,null,"TÍTULO 20"]
[null,null,"ARTÍCULO 3.20.1"]
[null,null,"ARTÍCULO 3.20.2"]
[null,null,"ARTÍCULO 3.20.3"]
[null,null,"3.20.3.1"]
[null,null,"3.20.3.2"]
[null,null,"3.20.3.3"]
[null,null,"ARTÍCULO 3.20.4"]
[null,null,"ARTÍCULO 3.20.5"]
[null,null,"ARTÍCULO 3.20.6"]
[null,null,"ARTÍCULO 3.20.7"]
[null,null,"ARTÍCULO 3.20.8"]
[null,null,"ARTÍCULO 3.20.9"]
[null,null,"ARTÍCULO 3.20.10"]
[null,null,"ARTÍCULO 3.20.11"]
[null,null,"CAPÍTULO 4"]
[null,null,"TÍTULO 21"]
[null,null,"ARTÍCULO 3.21.1"]
[null,null,"ARTÍCULO 3.21.2"]
[null,null,"ARTÍCULO 3.21.3"]
[null,null,"ARTÍCULO 3.21.4"]
[null,null,"ARTÍCULO 3.21.5"]
[null,null,"3.21.5.1"]
[null,null,"ARTÍCULO 3.21.6"]
[null,null,"3.21.6.1"]
[null,null,"3.21.6.2"]
[null,null,"3.21.6.3"]
[null,null,"3.21.6.4"]
[null,null,"ARTÍCULO 3.21.7"]
[null,null,"ARTÍCULO 3.21.8"]
[null,null,"TÍTULO 22"]
[null,null,"ARTÍCULO 3.22.1"]
[null,null,"ARTÍCULO 3.22.2"]
[null,null,"CAPÍTULO 5"]
[null,null,"TÍTULO 23"]
[null,null,"ARTÍCULO 3.23.1"]
[null,null,"ARTÍCULO 3.23.2"]
[null,null,"ARTÍCULO 3.23.3"]
[null,null,"TÍTULO 24"]
[null,null,"ARTÍCULO 3.24.1"]
[null,null,"ARTÍCULO 3.24.2"]
[null,null,"3.24.2.1"]
[null,null,"ARTÍCULO 3.24.3"]
[null,null,"ARTÍCULO 3.24.4"]
[null,null,"ARTÍCULO 3.24.5"]
[null,null,"ARTÍCULO 3.24.6"]
[null,null,"CAPÍTULO 6"]
[null,null,"TÍTULO 25"]
[null,null,"TÍTULO 26"]
[null,null,"TÍTULO 27"]
[null,null,"TÍTULO 28"]
[null,null,"ARTÍCULO 3.28.1"]
[null,null,"ARTÍCULO 3.28.2"]
[null,null,"ARTÍCULO 3.28.3"]
[null,null,"TÍTULO 29"]
[null,null,"ARTÍCULO 3.29.1"]
[null,null,"ARTÍCULO 3.29.2"]
[null,null,"ARTÍCULO 3.29.3"]
[null,null,"3.29.3.1"]
[null,null,"3.29.3.2"]
[null,null,"3.29.3.3"]
[null,null,"3.29.3.4"]
[null,null,"3.29.3.5"]
[null,null,"ARTÍCULO 3.29.4"]
[null,null,"3.29.4.1"]
[null,null,"3.29.4.2"]
[null,null,"3.29.4.3"]
[null,null,"3.29.4.4"]
[null,null,"3.29.4.5"]
[null,null,"3.29.4.6"]
[null,null,"3.29.4.7"]
[null,null,"ARTÍCULO 3.29.5"]
[null,null,"3.29.5.1"]
[null,null,"ARTÍCULO 3.29.6"]
[null,null,"3.29.6.1"]
[null,null,"3.29.6.2"]
[null,null,"3.29.6.3"]
[null,null,"ARTÍCULO 3.29.7"]
[null,null,"3.29.7.1"]
[null,null,"3.29.7.2"]
[null,null,"3.29.7.3"]
[null,null,"3.29.7.4"]

{"sheet":"Contenido RETIE esp","index":2,"n_rows":398,"n_cols":2,"rows_kept":398,"cut":false,"hidden":true,"merged":[[0,0,0,1]]}
["Contenido RETIE especifico"]
["ANEXO1","DISPOSICIONES GENERALES"]
["TÍTULO 1","OBJETO"]
["TÍTULO 2","DEFINICIONES"]
["ARTÍCULO 1.2.1","DEFINICIONES GENERALES"]
["ARTÍCULO 1.2.2","DEFINICIONES RELATIVAS A INSTALACIONES PARA EL CUIDADO DE LA SALUD"]
["TÍTULO 3","ABREVIATURAS, SISTEMA DE UNIDADES Y SEÑALIZACIÓN"]
["ARTÍCULO 1.3.1","ABREVIATURAS, ACRÓNIMOS Y SIGLAS"]
["ARTÍCULO 1.3.2 ","SISTEMA DE UNIDADES"]
["ARTÍCULO 1.3.3","SEÑALIZACIÓN DE SEGURIDAD"]
["1.3.3.1","Objetivo"]
["1.3.3.2","Símbolo de riesgo eléctrico"]
["1.3.3.3","Clasificación de las señales de seguridad"]
["TÍTULO 4","PROGRAMA DE SALUD OCUPACIONAL"]
["TÍTULO 5","REQUISITOS TÉCNICOS PRINCIPALES"]
["ARTÍCULO 1.5.1","ANÁLISIS DE RIESGOS DE ORIGEN ELÉCTRICO"]
["1.5.1.1","Proceso de gestión del riesgo"]
["1.5.1.2","Electropatología"]
["1.5.1.3","Evaluación del nivel de riesgo"]
["1.5.1.3.1","Matriz de análisis de riesgos"]
["1.5.1.3.2","Criterios para determinar alto riesgo"]
["1.5.1.3.3","Factores de riesgo eléctrico más comunes"]
["1.5.1.3.4","Medidas a tomar en situaciones de riesgos"]
["1.5.1.3.5","Notificación de accidentes"]
["ANEXO2","PRODUCTOS"]
["TÍTULO 1","OBJETO Y CAMPO DE APLICACIÓN"]
["ARTÍCULO 2.1.1","OBJETO"]
["ARTÍCULO 2.1.2","CAMPO DE APLICACIÓN"]
["2.1.2.1","PRODUCTOS OBJETO DEL REGLAMENTO"]
["2.1.2.2","EXCEPCIONES"]
["2.1.2.3","EXCLUSIONES"]
["TÍTULO 2","REQUISITOS GENERALES PARA LOS PRODUCTOS USADOS EN LAS INSTALACIONES ELÉCTRICAS"]
["ARTÍCULO 2.2.1","ALCANCE GENERAL DE LA INFORMACIÓN DE PRODUCTOS."]
["ARTÍCULO 2.2.2","DISPOSICIÓN Y ACCESO A LA INFORMACIÓN DE PÚBLICO CONOCIMIENTO"]
["TÍTULO 3","REQUISITOS ESPECÍFICOS PARA LOS PRODUCTOS USADOS EN LAS INSTALACIONES ELÉCTRICAS"]
["ARTÍCULO 2.3.1","AEROGENERADORES"]
["ARTÍCULO 2.3.2","AISLADORES ELÉCTRICOS"]
["ARTÍCULO 2.3.3","BATERÍAS O SISTEMAS DE ACUMULACIÓN ELÉCTRICA"]
["ARTÍCULO 2.3.4","CAJAS Y CONDULETAS"]
["2.3.4.1","CAJAS DE EMPALME, CAJAS PARA INSTALAR APARATOS Y CONDULETAS"]
["2.3.4.2","CAJAS DE MEDIDORES Y CAJAS DE DERIVACION"]
["ARTÍCULO 2.3.5","CARGADORES PARA VEHÍCULOS ELÉCTRICOS"]
["ARTÍCULO 2.3.6","CERCAS ELÉCTRICAS"]
["ARTÍCULO 2.3.7","CINTAS AISLANTES ELÉCTRICAS"]
["2.3.7.1","CINTAS AISLANTES ELÉCTRICAS PARA TENSIONES DE HASTA 600 V"]
["2.3.7.2","CINTAS AISLANTES PARA TENSIONES SUPERIORES A 600 V"]
["ARTÍCULO 2.3.8","CLAVIJAS Y TOMACORRIENTES"]
["ARTÍCULO 2.3.9","CONDENSADORES DE CAPACIDAD SUPERIOR A 3 KVAR Y BANCOS DE CONDENSADORES CON CAPACIDAD NOMINAL SUPERIOR A 5 KVAR DE BAJA Y DE MEDIA TENSIÓN."]
["ARTÍCULO 2.3.10","CONDUCTORES Y CABLES"]
["ARTÍCULO 2.3.11","CUARTOS DE SUBESTACIÓN PAQUETIZADOS O PREFABRICADOS"]
["ARTÍCULO 2.3.12","DISPOSITIVOS DE PROTECCIÓN CONTRA SOBRETENSIONES TRANSITORIAS"]
["ARTÍCULO 2.3.13","DUCHAS Y CALENTADORES DE PASO ELÉCTRICOS"]
["ARTÍCULO 2.3.14","ELECTROBOMBAS"]
["ARTÍCULO 2.3.15","ELECTRODOS DE PUESTA A TIERRA Y PUESTAS A TIERRA TEMPORALES"]
["2.3.15.1","ELECTRODOS DE PUESTA A TIERRA EN COBRE, ALEACIONES CON MÁS DEL 80% EN COBRE, ACERO INOXIDABLE, ACERO RECUBIERTO EN COBRE, ACERO CON RECUBRIMIENTO GALVANIZADO O CUALQUIER TIPO DE MATERIAL USADO COMO ELECTRODO DE PUESTA A TIERRA."]
["2.3.15.2","PUESTAS A TIERRA TEMPORALES."]
["ARTÍCULO 2.3.16","ELEMENTOS DE CONEXIÓN (CONECTORES, TERMINALES, EMPALMES Y BORNES PARA CONDUCTORES ELÉCTRICOS)"]
["ARTÍCULO 2.3.17","EQUIPOS DE CORTE Y SECCIONAMIENTO DE BAJA Y MEDIA TENSIÓN."]
["2.3.17.1","EQUIPOS DE MEDIA TENSION: SECCIONADORES, SECCIONALIZADORES, CORTACIRCUITOS, RECONECTADORES, INTERRUPTORES DE MEDIA TENSIÓN."]
["2.3.17.2","INTERRUPTORES AUTOMÁTICOS DE BAJA TENSIÓN"]
["2.3.17.3","INTERRUPTORES MANUALES DE BAJA TENSIÓN Y DIMMERS"]
["ARTÍCULO 2.3.18","EQUIPOS DE MANIOBRA Y CONTROL"]
["2.3.18.1","PULSADORES Y SELECTORES DE POSICIÓN"]
["2.3.18.2","CONTACTORES, RELÉS y ARRANCADORES"]
["2.3.18.3","RELÉS DE PROTECCION"]
["ARTÍCULO 2.3.19","EQUIPOS PARA ESPACIO CON CONFINAMIENTO DE EQUIPO ELÉCTRICO"]
["2.3.19.1","PUERTAS CORTAFUEGO"]
["2.3.19.2","COMPUERTAS DE VENTILACIÓN"]
["2.3.19.3","SELLOS CORTAFUEGO"]
["ARTÍCULO 2.3.20","EXTENSIONES Y MULTITOMAS."]
["ARTÍCULO 2.3.21","FUSIBLES Y PORTAFUSIBLES PARA INSTALACIONES ELÉCTRICAS."]
["ARTÍCULO 2.3.22","HERRAJES DE LÍNEAS DE TRANSMISIÓN Y REDES DE DISTRIBUCIÓN."]
["ARTÍCULO 2.3.23","INVERSORES"]
["ARTÍCULO 2.3.24","MOTORES, GENERADORES ELÉCTRICOS Y GRUPOS ELECTRÓGENOS."]
["2.3.24.1","MOTORES Y GENERADORES ELÉCTRICOS."]
["2.3.24.2","GRUPOS ELECTRÓGENOS"]
["ARTÍCULO 2.3.25","PANELES SOLARES FOTOVOLTAICOS"]
["ARTÍCULO 2.3.26","POSTES Y ESTRUCTURAS PARA REDES DE DISTRIBUCIÓN Y ALUMBRADO PÚBLICO."]
["2.3.26.1","POSTES, TORRECILLAS Y EN GENERAL LAS ESTRUCTURAS DE SOPORTE DE REDES DE DISTRIBUCIÓN."]
["2.3.26.2","POSTES EXCLUSIVOS PARA ALUMBRADO PÚBLICO."]
["ARTÍCULO 2.3.27","PRODUCTOS PARA INSTALACIONES ESPECIALES"]
["2.3.27.1","EQUIPOS ESPECIALES TALES COMO: ASCENSORES, ESCALERAS ELECTROMECÁNICAS, PASILLOS, ANDENES Y RAMPAS PARA EL TRANSPORTE DE PERSONAS, GRÚAS COLGANTES, ELEVADORES DE CARGA, POLIPASTOS, DUPLICADORES DE PARQUEO U OTROS."]
["2.3.27.2","PRODUCTOS ELÉCTRICOS PARA INSTALACIONES EN INSTITUCIONES O LUGARES DE ASISTENCIA MÉDICA Y SISTEMAS CONTRAINCENDIO, TALES COMO: (BOMBAS CONTRAINCENDIO Y SU CONTROLADOR, EQUIPOS DE RAYOS X, MONITOR DE AISLAMIENTO, TRANSFORMADOR DE AISLAMIENTO Y TABLERO DE AISLAMIENTO)"]
["2.3.27.3","PRODUCTOS ELÉCTRICOS LISTADOS EN LA PRESENTE TABLA PARA INSTALACIONES ELÉCTRICAS EN ÁREAS CLASIFICADAS COMO PELIGROSAS, INCLUYENDO MINAS Y TÚNELES."]
["ARTÍCULO 2.3.28","REGULADORES O CONTROLADORES DE TENSIÓN PARA CARGA DE BATERÍAS"]
["ARTÍCULO 2.3.29","SISTEMAS DE CANALIZACIONES CON SUS ACCESORIOS Y SOPORTES"]
["2.3.29.1","CANALIZACIONES ELÉCTRICAS PREFABRICADAS O ELECTRODUCTOS"]
["2.3.29.2","SISTEMAS DE BANDEJAS PORTACABLES"]
["2.3.29.3","SISTEMAS DE CANALES Y DE CONDUCTOS CERRRADOS DE SECCION NO CIRCULAR"]
["2.3.29.4","SISTEMAS DE TUBOS"]
["ARTÍCULO 2.3.30","SISTEMAS DE POTENCIA ININTERRUMPIDA (UPS)"]
["ARTÍCULO 2.3.31","TABLEROS ELÉCTRICOS Y CELDAS."]
["2.3.31.1","REQUISITOS PARA LA ENVOLVENTE O ENCERRAMIENTO PARA TABLEROS Y CELDAS"]
["2.3.31.2","REQUISITOS PARA TABLEROS DE BAJA TENSIÓN"]
["2.3.31.3","TABLEROS DE TRANSFERENCIAS AUTOMÁTICAS DE CARGA."]
["2.3.31.4","REQUISITOS PARA CELDAS DE MEDIA TENSIÓN"]
["ARTÍCULO 2.3.32","TRANSFORMADORES ELÉCTRICOS"]
["ARTÍCULO 2.3.33","UNIDADES DE TENSIÓN REGULADA, REGULADORES DE TENSIÓN O CONTROLADORES DE TENSIÓN"]
["ANEXO3","INSTALACIONES OBJETO DEL RETIE"]
["TÍTULO 1","CAMPO DE APLICACIÓN"]
["ARTÍCULO 3.1.1","INSTALACIONES ELÉCTRICAS"]
["3.1.1.1","Conformidad de la instalación"]
["3.1.1.2","Excepciones en instalaciones"]
["ARTÍCULO 3.1.2","PERSONAS"]
["CAPÍTULO 1","REQUERIMIENTOS GENERALES DE LAS INSTALACIONES ELÉCTRICAS"]
["TÍTULO 2","COMPETENCIAS Y RESPONSABILIDADES DE LAS DE PERSONAS QUE INTERVIENEN EN LAS INSTALACIONES ELÉCTRICAS"]
["ARTÍCULO 3.2.1","COMPETENCIA DE PERSONAS NATURALES."]
["ARTÍCULO 3.2.2","RESPONSABILIDAD DE LOS CONSTRUCTORES"]
["ARTÍCULO 3.2.3","RESPONSABILIDADES DEL DISEÑADOR"]
["TÍTULO 3","DISEÑO DE LAS INSTALACIONES ELÉCTRICAS"]
["ARTÍCULO 3.3.1","INSTALACIONES ELÉCTRICAS QUE REQUIEREN DISEÑO."]
["ARTÍCULO 3.3.2","INSTALACIONES QUE REQUIEREN ESQUEMA CONSTRUCTIVO"]
["3.3.2.1","Esquema constructivo"]
["ARTÍCULO 3.3.3","CRITERIOS PARTICULARES DE DISEÑO"]
["3.3.3.1","Requisitos para el uso de Dispositivos de Protección contra Sobretensiones (DPS) como sistemas de protección."]
["3.3.3.2","Cálculo de campos electromagnéticos"]
["3.3.3.3","Diseño del sistema de puesta a tierra"]
["3.3.3.4","Requisitos de diseño para líneas de transmisión"]
["3.3.3.5","Requisitos de diseño de instalaciones para el cuidado de la salud"]
["TÍTULO 4","ESPACIOS PARA MONTAJE DE EQUIPOS Y DISTANCIAS MÍNIMAS DE SEGURIDAD, PARA OPERACIÓN Y MANTENIMIENTO DE INFRAESTRUCTURA ELÉCTRICA"]
["TÍTULO 5","CÓDIGO DE COLORES PARA CONDUCTORES DE USO ELÉCTRICO"]
["TÍTULO 6","OPERACIÓN Y MANTENIMIENTO DE INSTALACIONES ELÉCTRICAS"]
["TÍTULO 7","CUMPLIMIENTO DE NORMATIVIDAD AMBIENTAL, DE PLANEACIÓN LOCAL O REGIONAL Y MINIMIZACIÓN DE PÉRDIDAS TÉCNICAS"]
["TÍTULO 8","PROTECCIONES DE LAS INSTALACIONES ELÉCTRICAS"]
["ARTÍCULO 3.8.1","REQUISITOS GENERALES DE LAS PROTECCIONES"]
["TÍTULO 9","COMPATIBILIDAD ELECTROMAGNÉTICA"]
["TÍTULO 10","CLASIFICACIÓN DE LOS NIVELES DE TENSIÓN"]
["TÍTULO 11","DISTANCIAS DE SEGURIDAD"]
["ARTÍCULO 3.11.1","DISTANCIAS MÍNIMAS DE SEGURIDAD EN ZONAS CON CONSTRUCCIONES"]
["ARTÍCULO 3.11.2","DISTANCIAS MÍNIMAS DE SEGURIDAD PARA DIFERENTES LUGARES Y SITUACIONES"]
["ARTÍCULO 3.11.3","DISTANCIAS VERTICALES MÍNIMAS EN CRUCES DE DISTINTAS LÍNEAS"]
["ARTÍCULO 3.11.4","DISTANCIAS MÍNIMAS ENTRE CONDUCTORES EN LA MISMA ESTRUCTURA"]
["ARTÍCULO 3.11.5","DISTANCIAS MÍNIMAS PARA TRABAJOS EN O CERCA DE PARTES ENERGIZADAS"]
["TÍTULO 12","CAMPOS ELECTROMAGNÉTICOS"]
["ARTÍCULO 3.12.1","VALORES LÍMITES DE EXPOSICIÓN A CAMPOS ELECTROMAGNÉTICOS"]
["ARTÍCULO 3.12.2","MEDICIÓN DE CAMPOS ELECTROMAGNÉTICOS"]
["TÍTULO 13","SISTEMA DE PUESTA A TIERRA"]
["ARTÍCULO 3.13.1","REQUISITOS GENERALES DEL SISTEMA DE PUESTA A TIERRA"]
["ARTÍCULO 3.13.2","COMPONENTES DE LOS SISTEMAS DE PUESTA A TIERRA"]
["3.13.2.1","Electrodos de Puesta a Tierra"]
["3.13.2.2","Conductor del Electrodo de Puesta a Tierra o Conductor a Tierra"]
["3.13.2.3","Conductor de Protección o de Puesta a Tierra de Equipos"]
["ARTÍCULO 3.13.3","VALORES DE REFERENCIA DE RESISTENCIA DE PUESTA A TIERRA"]
["ARTÍCULO 3.13.4","MEDICIONES PARA SISTEMAS DE PUESTA A TIERRA"]
["3.13.4.1","Medición de Resistividad Aparente"]
["3.13.4.2","Medición de Resistencia de Puesta a Tierra"]
["3.13.4.3","Medición de tensiones de paso y contacto"]
["ARTÍCULO 3.13.5","PUESTA A TIERRA EN SISTEMAS CON CORRIENTE CONTINUA"]
["ARTÍCULO 3.13.6","MANTENIMIENTO DE SISTEMAS DE PUESTA A TIERRA"]
["3.13.6.1","Pruebas"]
["3.13.6.2","Registros"]
["TÍTULO 14","PROTECCIÓN CONTRA RAYOS Y SOBRETENSIONES TRANSITORIAS"]
["ARTÍCULO 3.14.1","PROTECCIÓN CONTRA RAYOS"]
["3.14.1.1","Evaluación del nivel de riesgo frente a rayos"]
["3.14.1.2","Diseño e implementación de un sistema de protección contra rayos"]
["3.14.1.3","Componentes del sistema de protección contra rayos"]
["3.14.1.4","Comportamiento frente a rayos"]
["TÍTULO 15","REQUISITOS GENERALES PARA LAS REDES ELÉCTRICAS DE SISTEMAS ILUMINACIÓN"]
["ARTÍCULO 3.15.1","ASPECTOS GENERALES:"]
["ARTÍCULO 3.15.2","USO DE PORTALÁMPARAS Y ELEMENTOS DE ENCENDIDO Y APAGADO"]
["TÍTULO 16","TRABAJOS EN REDES O SISTEMAS DESENERGIZADOS Y MÁXIMO ACERCAMIENTO DE UNA PERSONA NO CALIFICADA A ELEMENTOS ENERGIZADOS"]
["ARTÍCULO 3.16.1","PROCEDIMIENTO PARA MANIOBRAS"]
["ARTÍCULO 3.16.2","LISTA DE VERIFICACIÓN PARA TRABAJOS EN CONDICIONES DE ALTO RIESGO"]
["ARTÍCULO 3.16.3","VERIFICACIÓN EN EL LUGAR DE TRABAJO"]
["ARTÍCULO 3.16.4","TRABAJOS EN ALTURA"]
["ARTÍCULO 3.16.5","REGLAS DE ORO PARA TRABAJOS EN SISTEMAS DESENERGIZADOS"]
["ARTÍCULO 3.16.6","MÁXIMOS ACERCAMIENTOS A ELEMENTOS ENERGIZADAS PARA REALIZAR TRABAJOS EN PARTES SIN TENSIÓN"]
["ARTÍCULO 3.16.7","APERTURA DE TRANSFORMADORES DE CORRIENTE Y SECCIONADORES"]
["ARTÍCULO 3.16.8","MÁXIMO CERCAMIENTO DE PERSONAS NO CALIFICADAS A UN ELEMENTO ENERGIZADO"]
["TÍTULO 17","TRABAJOS EN TENSIÓN O CON SISTEMAS O REDES ENERGIZADAS"]
["ARTÍCULO 3.17.1","MÉTODOS DE TRABAJO EN TENSIÓN"]
["ARTÍCULO 3.17.2","ORGANIZACIÓN DEL TRABAJO EN TENSIÓN"]
["ARTÍCULO 3.17.3","PROCEDIMIENTOS DE EJECUCIÓN DE LOS TRABAJOS EN TENSIÓN"]
["TÍTULO 18","REQUISITOS DE INSTALACIÓN DE LOS PRINCIPALES PRODUCTOS USADOS EN INSTALACIONES DE USO FINAL"]
["ARTÍCULO 3.18.1","AEROGENERADORES"]
["ARTÍCULO 3.18.2","AISLADORES"]
["ARTÍCULO 3.18.3","BANDEJAS PORTACABLES PARA USO EN INSTALACIONES BÁSICAS"]
["ARTÍCULO 3.18.4","BATERÍAS O SISTEMAS DE ACUMULACIÓN ELÉCTRICA"]
["ARTÍCULO 3.18.5","BÓVEDAS"]
["ARTÍCULO 3.18.6","CAJAS Y CONDULETAS"]
["ARTÍCULO 3.18.7","CANALIZACIONES"]
["3.18.7.1","Requisitos generales para la instalación de canalizaciones."]
["3.18.7.2","Canalizaciones eléctricas prefabricadas o electroductos."]
["3.18.7.3","Canalizaciones superficiales metálicas y no metálicas (canaletas)."]
["3.18.7.4","Otras canalizaciones."]
["3.18.7.5","Tubos, tuberías y accesorios."]
["ARTÍCULO 3.18.8","CARGADORES DE BATERÍAS PARA VEHÍCULOS ELÉCTRICOS"]
["ARTÍCULO 3.18.9","CELDAS DE MEDIA TENSIÓN Y TABLEROS DE BAJA TENSIÓN"]
["ARTÍCULO 3.18.10","CERCAS ELÉCTRICAS"]
["ARTÍCULO 3.18.11","CLAVIJAS Y TOMACORRIENTES"]
["ARTÍCULO 3.18.12","COMPUERTAS DE VENTILACIÓN"]
["ARTÍCULO 3.18.13","CONDENSADORES Y BANCOS DE CONDENSADORES DE BAJA Y MEDIA TENSIÓN"]
["ARTÍCULO 3.18.14","CONDUCTORES AISLADOS"]
["ARTÍCULO 3.18.15","DISPOSITIVOS DE PROTECCIÓN CONTRA SOBRETENSIONES TRANSITORIAS (DPS)"]
["ARTÍCULO 3.18.16","DUCHAS ELÉCTRICAS Y CALENTADORES DE PASO"]
["ARTÍCULO 3.18.17","ELEMENTOS DE CONEXIÓN (CONECTORES, TERMINALES, EMPALMES Y BORNES PARA CONDUCTORES ELÉCTRICOS)"]
["ARTÍCULO 3.18.18","EQUIPOS DE MEDIA TENSIÓN: SECCIONADORES, SECCIONALIZADORES, CORTACIRCUITOS, RECONECTADORES, INTERRUPTORES DE MEDIA TENSIÓN."]
["ARTÍCULO 3.18.19","HERRAJES PARA REDES DE DISTRIBUCIÓN Y TRANSMISIÓN"]
["ARTÍCULO 3.18.20","INTERRUPTORES AUTOMÁTICOS DE BAJA TENSIÓN"]
["ARTÍCULO 3.18.21","INTERRUPTORES MANUALES DE BAJA TENSIÓN"]
["ARTÍCULO 3.18.22","INVERSORES"]
["ARTÍCULO 3.18.23","MOTORES ELÉCTRICOS"]
["ARTÍCULO 3.18.24","PANELES SOLARES FOTOVOLTAICOS"]
["ARTÍCULO 3.18.25","PUERTAS CORTAFUEGO"]
["ARTÍCULO 3.18.26","PUESTAS A TIERRA TEMPORALES"]
["ARTÍCULO 3.18.27","SELLOS CORTAFUEGO"]
["ARTÍCULO 3.18.28","TRANSFERENCIAS AUTOMÁTICAS Y SUS SISTEMAS DE CONTROL"]
["ARTÍCULO 3.18.29","TRANSFORMADORES DE POTENCIA Y DISTRIBUCIÓN"]
["ARTÍCULO 3.18.30","UNIDADES DE POTENCIA ININTERRUMPIDA (UPS)"]
["ARTÍCULO 3.18.31","UNIDADES DE TENSIÓN REGULADA (REGULADORES DE TENSIÓN)"]
["CAPÍTULO 2","REQUISITOS PARA EL PROCESO DE GENERACIÓN"]
["TÍTULO 19","PRESCRIPCIONES GENERALES PARA CENTRALES DE GENERACIÓN"]
["ARTÍCULO 3.19.1","EDIFICACIONES DE CENTRALES DE GENERACIÓN"]
["ARTÍCULO 3.19.2","DISTANCIAS DE SEGURIDAD"]
["ARTÍCULO 3.19.3","PUESTAS A TIERRA"]
["ARTÍCULO 3.19.4","VALORES DE CAMPOS ELECTROMAGNÉTICOS"]
["ARTÍCULO 3.19.5","OTRAS ESTRUCTURAS ASOCIADAS A LA CENTRAL DE GENERACIÓN"]
["ARTÍCULO 3.19.6","OPERACIÓN Y MANTENIMIENTO DE LAS CENTRALES DE GENERACIÓN"]
["ARTÍCULO 3.19.7","REQUISITOS GENERALES PARA LA INSTALACIÓN DE SISTEMAS DE GENERACIÓN CON FUENTES NO CONVENCIONALES DE ENERGÍA, AUTOGENERADORES A PEQUEÑA ESCALA (AGPE) Y GENERACIÓN DISTRIBUIDA (GD)"]
["ARTÍCULO 3.19.8","FUENTES DE GENERACIÓN DE ENERGÍA ELÉCTRICA INTERCONECTADAS O COGENERACIÓN."]
["CAPÍTULO 3","REQUISITOS PARA EL PROCESO DE TRANSMISIÓN"]
["TÍTULO 20","PRESCRIPCIONES GENERALES DE LAS LÍNEAS DE TRANSMISIÓN"]
["ARTÍCULO 3.20.1","ZONAS DE SERVIDUMBRE"]
["ARTÍCULO 3.20.2","PUESTAS A TIERRA"]
["ARTÍCULO 3.20.3","REQUISITOS MECÁNICOS EN ESTRUCTURAS O APOYOS DE LÍNEAS DE TRANSMISIÓN"]
["3.20.3.1","Estructuras de Suspensión"]
["3.20.3.2","Estructuras de Retención"]
["3.20.3.3","Estructuras Terminales"]
["ARTÍCULO 3.20.4","AISLAMIENTO"]
["ARTÍCULO 3.20.5","DISTANCIAS MÍNIMAS DE SEGURIDAD"]
["ARTÍCULO 3.20.6","CONDUCTORES Y CABLES DE GUARDA"]
["ARTÍCULO 3.20.7","SEÑALES DE AERONAVEGACIÓN"]
["ARTÍCULO 3.20.8","REPOTENCIACIÓN DE LÍNEAS"]
["ARTÍCULO 3.20.9","USO DE NUEVAS TECNOLOGÍAS EN LÍNEAS DE TRANSMISIÓN"]
["ARTÍCULO 3.20.10","LÍNEAS SUBTERRÁNEAS"]
["ARTÍCULO 3.20.11","INFORMACIÓN DE SEGURIDAD A PERSONAS CERCANAS A LA LÍNEA"]
["CAPÍTULO 4","REQUISITOS PARA EL PROCESO DE DISTRIBUCIÓN"]
["TÍTULO 21","PRESCRIPCIONES GENERALES"]
["ARTÍCULO 3.21.1","ALCANCE DEL SISTEMA DE DISTRIBUCIÓN"]
["ARTÍCULO 3.21.2","REQUISITOS BÁSICOS DE OPERACIÓN Y MANTENIMIENTO PARA SISTEMAS DE DISTRIBUCIÓN"]
["ARTÍCULO 3.21.3","PUESTAS A TIERRA DE SISTEMAS DE DISTRIBUCIÓN"]
["ARTÍCULO 3.21.4","ESTRUCTURAS DE SOPORTE"]
["ARTÍCULO 3.21.5","AISLAMIENTO"]
["3.21.5.1","Distancias de seguridad en redes de distribución"]
["ARTÍCULO 3.21.6","CONDUCTORES, CABLES DE GUARDA Y CABLES DE RETENCIÓN"]
["3.21.6.1","Conductores Aéreos"]
["3.21.6.2","Cables cubiertos."]
["3.21.6.3","Conductores subterráneos."]
["3.21.6.4","Cables de guarda y templetes."]
["ARTÍCULO 3.21.7","TABLEROS DE DISTRIBUCIÓN EN ESPACIOS DE USO PÚBLICO"]
["ARTÍCULO 3.21.8","MANTENIMIENTO DEL SISTEMA DE DISTRIBUCIÓN"]
["TÍTULO 22","INFORMACIÓN DE SEGURIDAD PARA EL USUARIO Y PÚBLICO EN GENERAL"]
["ARTÍCULO 3.22.1","CARTILLA DE SEGURIDAD"]
["ARTÍCULO 3.22.2","INFORMACIÓN PERIÓDICA A USUARIOS Y PÚBLICO EN GENERAL"]
["CAPÍTULO 5","REQUISITOS PARA EL PROCESO DE TRANSFORMACIÓN (SUBESTACIONES)"]
["TÍTULO 23","REQUISITOS GENERALES DE SUBESTACIONES"]
["ARTÍCULO 3.23.1","DISTANCIAS DE SEGURIDAD EN SUBESTACIONES EXTERIORES"]
["ARTÍCULO 3.23.2","DISTANCIAS DE SEGURIDAD EN SUBESTACIONES INTERIORES"]
["ARTÍCULO 3.23.3","SALAS DE OPERACIONES, MANDO Y CONTROL"]
["TÍTULO 24","REQUISITOS ESPECÍFICOS SEGÚN TIPO DE SUBESTACIÓN"]
["ARTÍCULO 3.24.1","SUBESTACIONES DE ALTA Y EXTRA ALTA TENSIÓN"]
["ARTÍCULO 3.24.2","SUBESTACIONES DE MEDIA TENSIÓN TIPO INTERIOR O EN EDIFICACIONES"]
["3.24.2.1","Requisitos Generales."]
["ARTÍCULO 3.24.3","SUBESTACIONES TIPO POSTE"]
["ARTÍCULO 3.24.4","SUBESTACIONES TIPO PEDESTAL O TIPO JARDÍN."]
["ARTÍCULO 3.24.5","SUBESTACIONES PREFABRICADAS O PAQUETIZADAS"]
["ARTÍCULO 3.24.6","MANTENIMIENTO DE SUBESTACIONES"]
["CAPÍTULO 6","REQUISITOS PARA INSTALACIONES DE USO FINAL"]
["TÍTULO 25","APLICACIÓN DE NORMAS TÉCNICAS"]
["TÍTULO 26","RÉGIMEN DE CONEXIÓN A TIERRA (RCT)"]
["TÍTULO 27","ACOMETIDAS"]
["TÍTULO 28","PROTECCIÓN DE LAS INSTALACIONES DE USO FINAL"]
["ARTÍCULO 3.28.1","MEDIDAS DE PROTECCIÓN BÁSICA"]
["ARTÍCULO 3.28.2","MEDIDAS DE PROTECCIÓN CONTRA FALLA DE AISLAMIENTO."]
["ARTÍCULO 3.28.3","PROTECCIONES CONTRA SOBRECORRIENTES."]
["TÍTULO 29","CLASIFICACIÓN DE LAS INSTALACIONES DE USO FINAL Y REQUISITOS ESPECÍFICOS SEGÚN EL TIPO DE INSTALACIÓN"]
["ARTÍCULO 3.29.1","INSTALACIONES BÁSICAS"]
["ARTÍCULO 3.29.2","INSTALACIONES PROVISIONALES"]
["ARTÍCULO 3.29.3","INSTALACIONES ESPECIALES"]
["3.29.3.1","Instalaciones eléctricas en lugares clasificados como peligrosos"]
["3.29.3.2","Instalaciones para el cuidado de la salud"]
["3.29.3.3","Instalaciones en lugares con alta concentración de personas"]
["3.29.3.4","Edificios para usos agrícolas o pecuarios"]
["3.29.3.5","Casas flotantes y palafíticas"]
["ARTÍCULO 3.29.4","INSTALACIÓN DE EQUIPOS ESPECIALES"]
["3.29.4.1","Las grúas colgantes y elevadores de carga"]
["3.29.4.2","Ascensores, escaleras y pasillos mecánicos"]
["3.29.4.3","Equipos de rayos X"]
["3.29.4.4","Celdas electrolíticas"]
["3.29.4.5","Equipos de galvanoplastia"]
["3.29.4.6","Piscinas, fuentes e instalaciones similares"]
["3.29.4.7","Bombas contra incendio"]
["ARTÍCULO 3.29.5","OTRAS INSTALACIONES, DE CONDICIONES ESPECIALES."]
["3.29.5.1","Sistemas de emergencia."]
["ARTÍCULO 3.29.6","TÚNELES Y CAVERNAS SUBTERRÁNEAS."]
["3.29.6.1","Instalaciones provisionales para la construcción de túneles y cavernas"]
["3.29.6.2","Instalaciones definitivas en túneles y cavernas"]
["3.29.6.3","Instalaciones de más de 600 V en Túneles."]
["ARTÍCULO 3.29.7","PROHIBICIONES"]
["3.29.7.1","Compuestos persistentes"]
["3.29.7.2","Pararrayos radiactivos"]
["3.29.7.3","Materiales reutilizados en instalaciones de uso final"]
["3.29.7.4","Uso de la tierra como único conductor de retorno"]
["ANEXO4","PROCEDIMIENTOS DE EVALUACIÓN DE LA CONFORMIDAD"]
["TÍTULO 1","ESTRUCTURA DEL PROCEDIMIENTO DE EVALUACIÓN DE LA CONFORMIDAD"]
["ARTÍCULO 4.1.1","ORGANISMOS DE EVALUACIÓN DE LA CONFORMIDAD"]
["4.1.1.1","Acreditación de organismos para evaluación de la conformidad"]
["4.1.1.2","Responsabilidad y oportunidad de organismos de evaluación de la conformidad"]
["ARTÍCULO 4.1.2","LABORATORIOS DE PRUEBAS Y ENSAYOS"]
["ARTÍCULO 4.1.3","ORGANISMOS DE CERTIFICACIÓN DE PRODUCTOS"]
["ARTÍCULO 4.1.4","ORGANISMO DE CERTIFICACIÓN DE PERSONAS NATURALES"]
["ARTÍCULO 4.1.5","ORGANISMOS DE INSPECCIÓN DE INSTALACIONES ELÉCTRICAS"]
["TÍTULO 2","REQUISITOS"]
["ARTÍCULO 4.2.1","PARA PRODUCTOS"]
["ARTÍCULO 4.2.2","PARA PERSONAS"]
["TÍTULO 3","EVALUADORES DE LA CONFORMIDAD"]
["ARTÍCULO 4.3.1","DE PRODUCTOS"]
["4.3.1.1","Organismo de Certificación de Productos"]
["4.3.1.2","Productores para Colombia"]
["ARTÍCULO 4.3.2","DISEÑO, CONSTRUCCIÓN, INSPECCIÓN OPERACIÓN Y MANTENIMIENTO"]
["4.3.2.1","Organismo de Inspección"]
["ARTÍCULO 4.3.3","DE PERSONAS"]
["4.3.3.1","Organismo de Certificación de Personas"]
["ARTÍCULO 4.3.4","ENSAYOS, CALIBRACIÓN Y PROCESOS DE MEDICIÓN"]
["4.3.4.1"," Laboratorios de ensayo y calibración"]
["TÍTULO 4","PROCEDIMIENTOS DE EVALUACIÓN DE LA CONFORMIDAD"]
["ARTÍCULO 4.4.1","ESQUEMAS DE CERTIFICACIÓN DE PRODUCTOS"]
["4.4.1.1","Certificación de Lotes - Esquema 1B RETIE"]
["4.4.1.2","Esquema 4 RETIE"]
["4.4.1.3","Esquema 5 RETIE"]
["4.4.1.4","Alternativas válidas para la expedición de certificación o declaración de conformidad"]
["4.4.1.5","Realización de ensayos"]
["4.4.1.6","Contenido mínimo del Certificado de producto:"]
["4.4.1.7","Disponibilidad y suministro de los certificados de conformidad"]
["4.4.1.8","Familias de producto"]
["ARTÍCULO 4.4.2","DISEÑO, CONSTRUCCIÓN, INSPECCIÓN, OPERACIÓN Y MANTENIMIENTO"]
["4.4.2.1","Diseño"]
["4.4.2.2","Construcción"]
["4.4.2.3","Inspección"]
["4.4.2.4","Operación y mantenimiento"]
["4.4.2.5","Revisión de las instalaciones"]
["ARTÍCULO 4.4.3","ESQUEMA DE CERTIFICACIÓN DE PERSONAS"]
["4.4.3.1","Áreas de certificación"]
["4.4.3.2","Categorías de la certificación"]
["4.4.3.3","Descripción del trabajo y las tareas de inspección"]
["4.4.3.4","Competencias requeridas"]
["4.4.3.5","Prerrequisitos"]
["4.4.3.6","Código de conducta"]
["TÍTULO 5","VIGILANCIA, CONTROL Y RÉGIMEN SANCIONATORIO"]
["ARTÍCULO 4.5.1","ENTIDADES DE VIGILANCIA Y CONTROL"]
["ARTÍCULO 4.5.2","RÉGIMEN SANCIONATORIO"]
["TÍTULO 6","INTERPRETACIÓN, REVISIÓN Y ACTUALIZACIÓN DEL REGLAMENTO"]
["ARTÍCULO 4.6.1","-"]
["RESOLUCIÓN","Por la cual se expide el nuevo Reglamento Técnico de Instalaciones Eléctricas - RETIE "]
["CONSIDERANDOS","CONSIDERANDOS"]
["RESUELVE","RESUELVE"]
["ARTÍCULO 1","OBJETO"]
["ARTÍCULO 2","ÁMBITO DE APLICACIÓN"]
["ARTÍCULO 3","TRANSITORIEDAD"]
["Parágrafo 1","TRANSITORIEDAD PRODUCTOS"]
["Parágrafo 2","TRANSITORIEDAD INSTALACIONES"]
["Parágrafo 3","TRANSITORIEDAD PERSONAS"]
["ARTÍCULO 4","VIGENCIA Y DEROGATORIAS"]
["MEMORIAJUSTIFICATIVA","MEMORIA JUSTIFICATIVA"]
[1,"ANTECEDENTES Y RAZONES DE OPORTUNIDAD Y CONVENIENCIA QUE JUSTIFICAN SU EXPEDICIÓN."]
["1.1","ANTECEDENTES"]
["1.1.1","Análisis de impacto normativo"]
["1.1.2","Elaboración documento anteproyecto"]
["1.2","RAZONES DE OPORTUNIDAD"]
["1.2.1","Ajustes generales"]
["1.2.1.1","Respecto de la Normatividad técnica"]
["1.2.1.2","Respecto de la División del RETIE en cuatro anexos"]
["1.2.1.2.1","Respecto del Anexo 1 - Generalidades"]
["1.2.1.2.2","Respecto del Anexo 2 - Productos"]
["1.2.1.2.3","Respecto del Anexo 3 - Instalaciones"]
["1.2.1.2.4","Respecto del Anexo 4 - Demostración de la conformidad"]
["1.3","CONVENIENCIA"]
["1.3.1","Respecto del Anexo 1 - Generalidades"]
["1.3.2","Respecto del Anexo 2 - Productos"]
["1.3.3","Respecto del Anexo 3 - Instalaciones"]
["1.3.4","Respecto del Anexo 4 - Demostración de la conformidad"]
[2,"ÁMBITO DE APLICACIÓN Y SUJETOS A QUIENES VA DIRIGIDO"]
[3,"VIABILIDAD JURÍDICA"]
["3.1","Análisis de las normas que otorgan la competencia para la expedición del proyecto normativo"]
["a","Artículo 2 del Decreto 381 de 2012"]
["b","Artículo 5 del Decreto 381 de 2012"]
["3.2","Vigencia de la ley o norma reglamentada o desarrollada"]
["3.3","Disposiciones derogas, subrogadas, modificadas, adicionadas o sustituidas "]
["3.4","Revisión y análisis de la jurisprudencia que tenga impacto o sea relevante para la expedición del proyecto normativo (órganos de cierre de cada jurisdicción)"]
["3.5","Circunstancias jurídicas adicionales "]
[4,"IMPACTO ECONÓMICO"]
["4.1","Impacto en organismos acreditados:"]
["4.2","Costos asociados a la vigilancia y control del reglamento"]
["4.3","Costos asociados al proceso de Capacitación en reglamentos"]
["4.4","Costos asociados al proceso de certificación"]
["4.5","Histórico de ingenieros electricistas matriculados"]
[5,"VIABILIDAD O DISPONIBILIDAD PRESUPUESTAL"]
[6,"ESTUDIOS TÉCNICOS QUE SUSTENTEN EL PROYECTO NORMATIVO (Si cuenta con ellos) "]